Cogmind - Beta 9.6 @@@ ROGUE MODE // 2020.04.22 @ 04:47:16 Player: cptwinky Result: Destroyed by G-73 Enforcer with Heavy Laser Performance ------------- Evolutions (8) 4000 Regions Visited (30) 6000 Robots Destroyed (444) 2220 Value Destroyed (21029) 21029 Prototype IDs (75) 1500 Alien Tech Used (4) 800 Bonus (16484) 16484 TOTAL SCORE: 52033 Bonus ------- Triggered High Security 500 High Alert Combat Kills 6332 Follower Combat Kills 4220 Network Hubs Disabled 200 Met Data Miner 300 Met Imprinter 300 Was Imprinted 300 Met Zhirov 300 Built Enhanced Grunts 300 A7 Reached Mainframe 300 Met R17 at Cetus 500 Found Hidden Lab 3000 Scanned by Researcher 500 Friendly Fire -568 Cogmind --------- Core Integrity 0/1450 Matter 0/300 Energy 100/100 System Corruption 21% Temperature Cool (8) Movement Core (1100) Ox21 Location -2/Testing Parts ------- > --- POWER (2) -------- (None) > --- PROPULSION (6) --- (None) > --- UTILITY (13) ----- High-capacity Storage Unit SHELL Armor > --- WEAPON (3) ------- Mini Smartbomb Launcher > --- INVENTORY (12) --- Improved Energy Well (600) Advanced Matter Compressor (0) Experimental Sensor Array Phasing AFG Tachyon Dispersion Ray Compact HERF Cannon Potential Cannon Hypervelocity Gauss Cannon Hypervelocity Mass Driver Power Sword Enhanced Force Lance Peak State ------------ > --- POWER ------------ Quantum Reactor Light Quantum Reactor > --- PROPULSION ------- Medium Treads Biometal Heavy Treads Biometal Heavy Treads Centrium Leg > --- UTILITY ---------- Advanced Cooling System High-capacity Storage Unit High-capacity Storage Unit High-capacity Storage Unit Improved Energy Well Experimental Sensor Array Experimental Signal Interpreter Improved Kinecellerator Advanced Transmission Jammer Experimental Powered Armor Advanced Force Field Deep Network Scanner Advanced Component Analysis Suite > --- WEAPON ----------- Improved KE Penetrator Improved KE Penetrator Enhanced Force Lance > --- INVENTORY -------- Particle Reactor Particle Reactor Biometal Heavy Treads Matter Compressor Assault Drone Bay Assault Drone Bay Assault Drone Bay Phasing AFG Transdimensional Reconstructor Tachyon Dispersion Ray Advanced Variable Charge Gun Compact HERF Cannon Enhanced Nova Cannon Potential Cannon Improved KE Penetrator Improved KE Penetrator Hypervelocity Gauss Cannon Hypervelocity Gauss Cannon Heavy Gauss Cannon Hypervelocity Mass Driver Gamma Bomb Array Micro-nuke Launcher Guided Remote Datajack [Rating: 191] Favorites ----------- Power Quantum Reactor Engine Reinforced Deuterium Engine Power Core Micro Fission Core Reactor Quantum Reactor Propulsion Armored Wheel Treads Light Treads Leg Advanced Myomer Leg Wheel Armored Wheel Hover Unit Improved Gravmag System Utility High-capacity Storage Unit Device Advanced Transmission Jammer Storage High-capacity Storage Unit Processor Experimental Signal Interpreter Hackware Deep Network Scanner Protection Centrium Medium Armor Plating Weapon Improved KE Penetrator Energy Gun Dispersion Rifle Energy Cannon Heavy Proton Cannon Ballistic Gun Improved KE Penetrator Ballistic Cannon Compact Linear Accelerator Launcher Heavy Missile Launcher Special Weapon Molecular Deconstructor Impact Weapon Great Maul Slashing Weapon Chainsword Piercing Weapon Enhanced Force Lance Build | -11 -10 -10 -10 -9 -8 -7 -7 -7 -7 -6 -6 -6 -6 -6 -5 -5 -5 -5 -5 -5 -4 -4 -4 -4 -3 -3 -3 -3 -2 -2 ------- Run | Scr Mat Min Exi Min Mat Fac Low Low Dat Pro Fac Low Low Zio Pro Fac Ext Cet Arc Hub Fac Upp Upp Zhi Pro Res Arm Lab Res Tes Slots Evolved 16 | . . . . . 4 2 . . . . 2 . . . . 2 . . . . 2 . . . . 2 . . 2 . Power 1 | . . . . . . . . . . . 1 . . . . . . . . . . . . . . . . . . . Propulsion 4 | . . . . . 1 . . . . . . . . . . 2 . . . . . . . . . . . . 1 . Utility 10 | . . . . . 3 2 . . . . . . . . . . . . . . 2 . . . . 2 . . 1 . Weapon 1 | . . . . . . . . . . . 1 . . . . . . . . . . . . . . . . . . . Parts Attached 444 | 6 9 4 1 4 53 8 13 11 1 33 9 10 11 2 17 18 12 21 . 7 23 3 2 8 9 31 13 11 54 40 Power 30 | 1 . . . 1 3 . 1 . . 1 2 . 1 . 1 2 1 4 . . . . . 1 . 2 1 . 6 2 Engine 11 | 1 . . . 1 3 . 1 . . 1 1 . 1 . 1 . 1 . . . . . . . . . . . . . Core 3 | . . . . . . . . . . . 1 . . . . 2 . . . . . . . . . . . . . . Reactor 16 | . . . . . . . . . . . . . . . . . . 4 . . . . . 1 . 2 1 . 6 2 Propulsion 70 | 2 5 . . 1 14 1 . 3 . 7 . . . 1 . 3 2 3 . . . . . 3 . 6 2 1 7 9 Treads 44 | 1 3 . . 1 9 1 . 1 . 1 . . . . . 1 2 3 . . . . . . . 6 2 1 6 6 Leg 5 | . . . . . . . . . . . . . . . . . . . . . . . . 3 . . . . 1 1 Wheel 20 | 1 2 . . . 5 . . 2 . 6 . . . 1 . 1 . . . . . . . . . . . . . 2 Hover 1 | . . . . . . . . . . . . . . . . 1 . . . . . . . . . . . . . . Flight . | . . . . . . . . . . . . . . . . . . . . . . . . . . . . . . . Utility 181 | 1 1 1 1 . 19 5 7 4 1 15 4 8 5 1 9 4 4 8 . 3 10 2 2 4 5 15 5 5 18 14 Device 108 | . 1 . . . 4 3 4 2 1 9 3 8 5 1 7 2 3 2 . 3 5 2 1 3 5 10 2 3 11 8 Storage 16 | 1 . 1 1 . 1 . . 1 . 2 . . . . . . . 1 . . . . . . . 1 3 . 2 2 Processor 10 | . . . . . 3 . . . . 1 . . . . 1 . 1 . . . 2 . . . . . . . 2 . Hackware 4 | . . . . . . . . . . . 1 . . . . 1 . . . . . . . . . 1 . 1 . . Protection 43 | . . . . . 11 2 3 1 . 3 . . . . 1 1 . 5 . . 3 . 1 1 . 3 . 1 3 4 Artifact . | . . . . . . . . . . . . . . . . . . . . . . . . . . . . . . . Weapon 163 | 2 3 3 . 2 17 2 5 4 . 10 3 2 5 . 7 9 5 6 . 4 13 1 . . 4 8 5 5 23 15 Energy Gun 16 | 1 1 1 . . 3 . . . . . . . . . 2 . . 2 . . 4 . . . 1 . . . 1 . Energy Cannon 24 | . . 1 . . 2 . . . . 2 . 1 2 . . 8 2 1 . . . . . . . . 1 1 1 2 Ballistic Gun 64 | 1 2 . . 2 6 2 3 2 . 2 2 . . . 2 1 1 2 . 3 4 1 . . 2 5 3 1 13 4 Ballistic Cannon 4 | . . . . . . . . . . . . . . . . . . . . . . . . . . . . . 1 3 Launcher 25 | . . . . . 4 . 2 2 . 2 . 1 2 . 2 . 2 . . . . . . . 1 1 . . 2 4 Special Weapon 7 | . . 1 . . . . . . . 1 . . . . 1 . . . . . 1 . . . . . . 2 . 1 Impact Weapon 1 | . . . . . 1 . . . . . . . . . . . . . . . . . . . . . . . . . Slashing Weapon 14 | . . . . . 1 . . . . 3 1 . 1 . . . . 1 . 1 4 . . . . 2 . . . . Piercing Weapon 8 | . . . . . . . . . . . . . . . . . . . . . . . . . . . 1 1 5 1 Special Melee Weapon . | . . . . . . . . . . . . . . . . . . . . . . . . . . . . . . . Unidentified Prototypes 24 | . . . . . 2 . . . . 1 . . . . . 1 . 5 . . 1 . . 3 . . 1 6 2 2 Parts Lost 67 | . 2 3 . 1 5 . . 2 . 6 . . . . . 2 1 . . . 2 . . . . 5 . . 6 32 Power 7 | . . . . . 1 . . . . . . . . . . . . . . . . . . . . 2 . . 1 3 Propulsion 17 | . . . . . 2 . . 2 . 2 . . . . . . . . . . . . . . . . . . . 11 Utility 25 | . . . . . 1 . . . . 3 . . . . . 1 . . . . 2 . . . . 1 . . 4 13 Weapon 18 | . 2 3 . 1 1 . . . . 1 . . . . . 1 1 . . . . . . . . 2 . . 1 5 Highest Loss Streak 12 | . 1 2 . 1 2 . . 2 . 2 . . . . . 2 1 . . . 1 . . . . 1 . . 4 12 Average Slot Usage (%) 88 | . 98 99 88 83 87 91 92 91 92 86 92 93 93 93 92 93 94 92 88 88 88 89 89 88 94 86 84 79 83 75 Engine 5 | . 14 14 14 14 9 7 7 7 7 7 9 6 8 13 12 5 2 3 . . . . . . . . . . . . Reactor 3 | . . . . . . . . . . . . . . . . . . 6 11 11 10 10 10 10 10 8 9 9 7 6 Treads 11 | . 16 14 14 14 16 16 23 8 15 8 . . . . . 3 12 12 17 17 15 15 15 11 5 13 14 13 12 9 Wheel 7 | . 11 14 14 14 9 5 . 13 7 14 20 20 20 20 20 23 15 8 . . . . . . . . . . . . Device 11 | . 13 14 3 . . 14 20 22 23 14 5 6 6 6 6 3 5 8 11 11 18 15 15 13 15 17 16 20 16 15 Storage 11 | . 14 14 13 14 9 7 7 7 7 8 13 13 13 13 13 11 11 11 11 11 10 10 10 10 10 10 11 13 15 15 Processor 7 | . . . . . 13 7 7 7 7 7 13 13 13 13 13 11 11 7 5 5 7 10 5 5 5 4 4 4 6 7 Protection 7 | . . . . . 10 14 9 7 7 10 6 6 6 6 5 5 5 10 11 11 10 10 14 15 15 12 9 4 5 2 Energy Gun 1 | . 5 8 14 3 3 . . . . . . . . . 5 . . . . . . 5 5 5 5 2 . . . . Energy Cannon 2 | . . 8 14 . . . . . . 1 . 4 5 6 . 11 11 11 11 7 . . . . . . . . . . Ballistic Gun 10 | . 21 5 . 22 13 11 14 14 15 6 13 13 13 13 12 4 5 4 5 8 12 10 10 10 9 10 13 . 10 7 Naked Turns . | . . . . . . . . . . . . . . . . . . . . . . . . . . . . . . . Heaviest Build 193 | 12 13 43 90 93 185 115 119 115 111 191 128 126 128 128 128 126 129 152 152 151 152 142 149 149 152 174 189 189 193 172 Greatest Support 225 | 10 40 12 12 12 63 60 60 60 12 40 36 36 36 36 36 48 48 190 190 190 190 190 190 190 90 183 185 185 210 225 Greatest Overweight (x) 23 | 1 1 3 7 7 9 9 1 8 9 9 3 3 3 3 3 2 5 6 . . . . . 1 1 1 1 1 1 23 Average Overweight (x) 2 | . . 2 5 7 4 7 1 3 8 5 3 3 3 3 2 2 3 4 . . . . . . 1 . . . . . Largest Inventory Capacity 44 | 6 6 12 24 24 44 24 24 44 24 40 20 20 20 20 20 20 20 20 20 20 20 20 20 20 20 20 28 28 28 28 Average Capacity 22 | 5 6 11 20 24 25 24 24 24 24 25 20 20 20 20 20 20 20 20 20 20 20 20 20 20 20 20 23 28 28 27 Most Carried 28 | 4 6 8 14 24 24 24 24 24 24 26 20 20 20 20 20 20 20 20 20 20 20 20 20 20 20 20 27 28 28 28 Average Carried 20 | 2 5 6 10 21 22 23 23 23 24 22 19 19 19 19 20 18 19 19 19 20 19 19 20 19 19 19 21 27 27 24 Final Capacity 28 | 6 6 12 24 24 24 24 24 24 24 20 20 20 20 20 20 20 20 20 20 20 20 20 20 20 20 20 28 28 28 12 Final Carried 28 | 4 6 6 14 24 24 24 24 24 24 20 20 19 20 20 20 19 20 19 20 20 19 20 20 20 20 20 27 28 26 12 Class Distribution -------------------- 34% | Hauler-Mutant 23% | Messiah-Tank 17% | Messiah-Mutant 6% | Hauler-Skirmisher 6% | Messiah-Gunner 5% | Mutant 4% | Messiah-Skirmisher Dominant Class ---------------- Mutant | -10/Materials Mutant | -10/Mines Hauler-Mutant | -10/Exiles Hauler-Mutant | -9/Mines Hauler-Mutant | -8/Materials Hauler-Mutant | -7/Factory Hauler-Mutant | -7/Lower Caves Hauler-Mutant | -7/Lower Caves Hauler-Mutant | -7/Data Miner Hauler-Mutant | -6/Proximity Caves Commander-Mutant | -6/Factory Hauler-Mutant | -6/Lower Caves Hauler-Skirmisher | -6/Lower Caves Hauler-Skirmisher | -6/Zion Messiah-Skirmisher | -5/Proximity Caves Messiah-Tank | -5/Factory Messiah-Mutant | -5/Extension Messiah-Mutant | -5/Cetus Messiah-Mutant | -5/Archives Messiah-Mutant | -5/Hub_04(d) Messiah-Tank | -4/Factory Messiah-Tank | -4/Upper Caves Messiah-Mutant | -4/Upper Caves Messiah-Tank | -4/Zhirov Messiah-Tank | -3/Proximity Caves Messiah-Tank | -3/Research Messiah-Tank | -3/Armory Messiah-Mutant | -3/Lab Messiah-Gunner | -2/Research Messiah-Gunner | -2/Testing Resources | -11 -10 -10 -10 -9 -8 -7 -7 -7 -7 -6 -6 -6 -6 -6 -5 -5 -5 -5 -5 -5 -4 -4 -4 -4 -3 -3 -3 -3 -2 -2 ----------- Run | Scr Mat Min Exi Min Mat Fac Low Low Dat Pro Fac Low Low Zio Pro Fac Ext Cet Arc Hub Fac Upp Upp Zhi Pro Res Arm Lab Res Tes Matter Collected 12411 | 261 178 91 36 73 1179 212 132 372 . 630 186 192 222 48 300 222 236 242 . 138 1118 79 73 . 396 1713 215 233 1775 1859 Remotely . | . . . . . . . . . . . . . . . . . . . . . . . . . . . . . . . Salvage Created 23906 | 65 330 87 . 136 3031 212 86 148 . 1536 51 201 245 . 413 567 999 323 280 358 1780 144 38 . 799 3156 358 . 3719 4844 Parts 1030 | 2 18 . . 8 141 5 8 7 . 79 . 12 5 . 20 29 56 15 8 27 79 5 1 . 25 166 11 . 161 142 Haulers Intercepted 8 | . 1 . . . 5 . . . . . . . . . . . . . . . . . . . . . . . 2 . Recyclers Shooed 13 | . 1 . . . . . . . . . . . . . . . 1 . . . 4 . . . . . . . 6 1 Parts Field Recycled . | . . . . . . . . . . . . . . . . . . . . . . . . . . . . . . . Retrieved Matter . | . . . . . . . . . . . . . . . . . . . . . . . . . . . . . . . Parts Self-Destructed 172 | . . . . . . . 6 15 . 63 . 10 4 . 35 . . . . . . . 19 . 20 . . . . . Prevented 12 | . . . . . . . . . . 1 . 1 . . 5 . . . . . . 1 . . 4 . . . . . Kills | -11 -10 -10 -10 -9 -8 -7 -7 -7 -7 -6 -6 -6 -6 -6 -5 -5 -5 -5 -5 -5 -4 -4 -4 -4 -3 -3 -3 -3 -2 -2 ------- Run | Scr Mat Min Exi Min Mat Fac Low Low Dat Pro Fac Low Low Zio Pro Fac Ext Cet Arc Hub Fac Upp Upp Zhi Pro Res Arm Lab Res Tes Combat Hostiles Destroyed 349 | . 9 7 . 3 50 5 7 9 . 24 1 9 8 . 10 7 14 4 3 4 19 2 . . 13 39 5 . 33 64 Melee 6 | . . . . . 1 . . . . 5 . . . . . . . . . . . . . . . . . . . . Guns 200 | . 9 3 . 3 33 5 2 1 . 2 1 2 3 . 4 2 . . . 3 19 2 . . 10 39 4 . 23 30 Cannons 22 | . . 4 . . 1 . . . . . . . . . . 1 8 1 . . . . . . . . 1 . . 6 AOE 80 | . . . . . 8 . 5 8 . 7 . 7 5 . 6 1 3 . . 1 . . . . 3 . . . 4 22 Classes Destroyed 25 | 1 4 1 . . 8 . . 1 . 2 . 1 1 . 2 . 1 . . 1 . . . . . . . . 1 1 Worker 25 | . . . . . 2 . . . . . . . . . . . . . . 3 4 . . . . 5 . . 9 2 Builder 19 | . . . . . 2 . . . . . . . . . . . 2 . . 3 5 . . . . . . . 3 4 Tunneler 1 | . . . . . . . . . . . . . . . . . . . . 1 . . . . . . . . . . Hauler 8 | . 1 . . . 5 . . . . . . . . . . . . . . . . . . . . . . . 2 . Recycler 14 | 1 . . . . 5 . . . . . . . . . . 1 . . . . 2 . . . . 1 . . 4 . Minesweeper 2 | . . . . . . . . 1 . . . . . . . . . . . . . . 1 . . . . . . . Mechanic 4 | . . . . . 1 . . . . . . . . . . . 1 . . . . . . . . . . . 1 1 Operator 7 | . . . . . 1 . . . . . . . . . . 2 1 . . . 1 . . . . 1 . . . 1 Watcher 11 | . 1 . . . 4 . . . . . . . . . . 1 1 1 . . . . . . . 1 . . 2 . Swarmer 63 | . 3 . . 1 9 . 7 8 . 7 . 5 2 . 4 . 3 . . . . . . . 4 3 . . 3 4 Saboteur 3 | . . . . . . . . . . . . . . . 1 . . . . . . . . . . . . . . 2 Grunt 149 | . 6 . . 2 27 4 . 1 . 10 . 2 3 . 4 4 3 . . 2 15 1 . . 8 9 3 . 13 32 Brawler 7 | . . . . . 1 . . . . . . . . . . . . . . . . . . . 1 . . . . 5 Duelist 13 | . . . . . 1 . . . . 1 1 . . . 1 . 1 . . . . . . . . 2 . . 2 4 Protector 7 | . . . . . . . . . . . . . . . . . . . . . . . . . . . . . 1 6 Sentry 31 | . . . . . 9 1 . . . 1 . 1 . . . 1 4 . 3 . 1 . . . . 7 . . 3 . Demolisher 1 | . . . . . . . . . . . . . . . . . 1 . . . . . . . . . . . . . Specialist 2 | . . . . . . . . . . 2 . . . . . . . . . . . . . . . . . . . . Hunter 26 | . . . . . 3 . . . . 2 . . . . . . . . . . . . . . . 9 2 . 3 7 Programmer 28 | . . . . . . . . . . . . 1 . . . 2 . . . 2 3 . . . . 8 . . 8 4 Behemoth 4 | . . . . . . . . . . 1 . . . . . . 2 . . . . . . . . 1 . . . . Cetus Guard 4 | . . . . . . . . . . . . . . . . . . 4 . . . . . . . . . . . . Investigator 1 | . . . . . . . . . . . . . . . . . . . . . . . . . . . . . . 1 Tinkerer 1 | . . . . . . . . . . . . . 1 . . . . . . . . . . . . . . . . . Assembled 7 | . . 7 . . . . . . . . . . . . . . . . . . . . . . . . . . . . Wasp 3 | . . . . . . . . . . . . . 3 . . . . . . . . . . . . . . . . . Thug 1 | . . . . 1 . . . . . . . . . . . . . . . . . . . . . . . . . . Mutant 2 | . . . . . . . . . . . . . . . 1 . . . . . . 1 . . . . . . . . Best Kill Streak 16 | 1 4 2 . 2 10 2 4 4 . 7 1 4 3 . 4 4 5 4 3 9 8 1 1 . 4 10 3 . 14 16 Combat Bots Only 14 | . 3 2 . 2 6 2 4 4 . 7 1 4 3 . 4 2 3 3 3 2 5 1 . . 4 5 3 . 9 14 Max Kills in Single Turn 8 | 1 1 1 . 1 3 1 2 4 . 3 1 3 2 . 2 2 3 1 1 8 2 1 1 . 2 2 1 . 4 8 Gunslinging 1 | . . . . . . . . . . . . . . . . . . . . . . . . . 1 . . . . . Exploded 8 | . . . . . 2 . 2 4 . 3 . 3 2 . 2 1 2 . . 1 . . . . 1 . . . 2 8 Melee 1 | . . . . . 1 . . . . 1 . . . . . . . . . . . . . . . . . . . . Uniques/NPCs Destroyed . | . . . . . . . . . . . . . . . . . . . . . . . . . . . . . . . Combat | -11 -10 -10 -10 -9 -8 -7 -7 -7 -7 -6 -6 -6 -6 -6 -5 -5 -5 -5 -5 -5 -4 -4 -4 -4 -3 -3 -3 -3 -2 -2 -------- Run | Scr Mat Min Exi Min Mat Fac Low Low Dat Pro Fac Low Low Zio Pro Fac Ext Cet Arc Hub Fac Upp Upp Zhi Pro Res Arm Lab Res Tes Damage Taken 28515 | . 586 210 . 201 3126 506 202 121 . 2025 280 193 363 . 511 335 685 271 38 862 996 39 91 . 151 3248 583 . 2579 10313 Core 2525 | . 102 29 . 28 271 32 . . . 195 . . 22 . . . . 14 14 67 92 . 16 . . 219 23 . 127 1274 Absorbed by Shields 5308 | . . . . . . . . . . . . . . . . . 319 77 36 . 613 . . . 144 2125 223 . 812 959 Reduced by Siege Mode 13 | . . . . . . . . . . . . . . . . . . . . . . . . . . . . . 13 . Core Remaining (%) 75 | 100 . . . 36 50 . . . . 67 . . . . 97 . . . . 90 . . . . 90 . . 74 . . Volleys Fired 908 | 1 44 25 . 11 131 20 13 11 . 46 12 9 13 . 15 19 32 14 6 11 54 8 9 . 23 146 13 . 93 129 Largest 3 | 2 2 2 . 2 2 2 2 2 . 2 2 3 3 . 3 3 3 2 2 3 3 3 3 . 3 3 3 . 3 3 Hottest 240 | 70 70 60 . 46 113 50 64 50 . 98 66 164 164 . 164 218 195 240 162 162 156 156 156 . 156 158 105 . 114 148 Shots Fired 1983 | 2 79 31 . 15 242 40 25 19 . 53 24 15 26 . 33 37 67 24 12 25 160 12 25 . 63 413 31 . 229 281 Gun 1635 | 2 79 21 . 15 207 40 22 16 . 14 24 8 14 . 25 14 9 3 . 21 160 12 25 . 60 411 26 . 220 187 Cannon 229 | . . 10 . . 17 . . . . 3 . 2 6 . 2 23 55 21 12 4 . . . . . . 5 . . 69 Launcher 83 | . . . . . 18 . 3 3 . 6 . 5 6 . 2 . 3 . . . . . . . 3 2 . . 9 23 Special 36 | . . . . . . . . . . 30 . . . . 4 . . . . . . . . . . . . . . 2 Kinetic 1437 | 1 59 15 . 10 153 40 22 16 . 14 24 8 14 . 18 14 9 2 . 21 143 9 16 . 40 310 26 . 219 234 Thermal 230 | 1 20 16 . . 19 . . . . 3 . 2 6 . 2 9 . 1 . . 17 3 9 . 20 101 . . . 1 Explosive 42 | . . . . . . . 3 3 . 6 . 5 6 . 2 . 3 . . . . . . . . . . . . 14 Electromagnetic 238 | . . . . 5 70 . . . . . . . . . 7 14 55 21 12 4 . . . . 3 2 5 . 10 30 Robot Hit Streak 30 | 2 10 7 . 2 23 9 3 5 . 6 6 4 3 . 7 6 10 10 9 5 23 16 17 . 6 26 4 . 27 30 Robot Miss Streak 7 | . 7 3 . 4 6 6 3 3 . 3 3 1 3 . 2 3 3 2 1 2 3 . 3 . 4 4 3 . 4 7 Penetration Max 3 | . . . . . . . . . . . 1 . . . 1 1 1 . . 1 1 . . . . 2 . . 1 3 Secondary Targets 37 | . 2 . . . 5 1 . . . . . . . . 1 . . . . 2 3 . . . 2 8 2 . 5 6 Max Gunslinging Chain 1 | . 1 . . . 1 1 . . . . . . . . 1 . . . . 1 1 . . . 1 1 1 . 1 1 Shots Hit Robots 1434 | 2 50 18 . 10 192 30 13 15 . 62 16 7 15 . 22 20 48 16 11 12 124 11 17 . 38 289 14 . 175 207 Core Hits 977 | 2 20 13 . 7 127 16 10 13 . 29 4 16 15 . 17 15 28 7 1 21 60 2 4 . 24 123 11 . 140 252 Critical Hits 231 | . 1 . . . 3 1 . . . 1 2 . 1 . 2 . 2 . 1 2 22 3 . . 13 58 4 . 41 74 Critical Kills 78 | . . . . . 1 1 . . . . . . 1 . 1 . . . . 1 8 1 . . 6 23 4 . 10 21 Critical Parts Destroyed 130 | . 1 . . . 2 . . . . 1 2 . . . 1 . 2 . 1 1 14 2 . . 6 25 . . 30 42 Melee Attacks 112 | . . . . . 6 . . . . 34 3 . 4 . . . . 2 . 2 18 . . . . 3 1 3 24 12 Impact 5 | . . . . . 5 . . . . . . . . . . . . . . . . . . . . . . . . . Slashing 67 | . . . . . 1 . . . . 34 3 . 4 . . . . 2 . 2 18 . . . . 3 . . . . Piercing 40 | . . . . . . . . . . . . . . . . . . . . . . . . . . . 1 3 24 12 Sneak Attacks 7 | . . . . . . . . . . 2 . . 2 . . . . . . . 3 . . . . . . . . . Combat Hostiles 2 | . . . . . . . . . . 2 . . . . . . . . . . . . . . . . . . . . Follow-up Attacks 4 | . . . . . . . . . . 4 . . . . . . . . . . . . . . . . . . . . Damage Inflicted 56745 | 23 594 299 . 136 5020 499 531 812 . 2953 494 792 1397 . 1268 1274 1919 982 347 1494 3868 172 232 . 1079 6155 503 . 8944 14958 Guns 30279 | 23 594 176 . 136 2790 499 142 167 . 267 494 169 180 . 488 259 171 53 . 322 3526 172 232 . 804 6121 277 . 6829 5388 Cannons 5487 | . . 123 . . 298 . . . . 68 . . . . 69 588 1419 588 347 70 . . . . . . 138 . . 1779 Explosions 18292 | . . . . . 1848 . 389 645 . 946 . 623 791 . 711 427 329 341 . 1048 . . . . 275 34 88 . 2009 7788 Melee 2561 | . . . . . 84 . . . . 1672 . . 426 . . . . . . 45 334 . . . . . . . . . Ramming 126 | . . . . . . . . . . . . . . . . . . . . 9 8 . . . . . . . 106 3 Kinetic 26904 | 10 408 133 . 81 1794 499 142 167 . 267 494 169 180 . 383 259 171 53 . 322 3138 118 125 . 469 3917 277 . 6817 6511 Thermal 7926 | 13 186 166 . . 746 . . . . 68 . . . . 433 643 . 341 . . 388 54 107 . 335 2204 . . 311 1931 Explosive 7829 | . . . . . . . 389 645 . 790 . 623 791 . 347 . 329 . . . . . . . . . 88 . . 3827 Electromagnetic 11399 | . . . . 55 2396 . . . . 156 . . . . 105 372 1419 588 347 1118 . . . . 275 34 138 . 1710 2686 Impact 84 | . . . . . 84 . . . . . . . . . . . . . . . . . . . . . . . . . Slashing 2477 | . . . . . . . . . . 1672 . . 426 . . . . . . 45 334 . . . . . . . . . Piercing . | . . . . . . . . . . . . . . . . . . . . . . . . . . . . . . . Highest Corruption 21 | . . 3 3 3 2 . . . . 1 . . . . 2 3 3 3 3 10 2 2 2 2 2 10 11 11 4 21 Average Corruption 4 | . . 3 3 3 1 . . . . 1 . . . . 1 2 3 3 3 3 1 2 2 2 2 6 10 11 2 13 Corruption Purged . | . . . . . . . . . . . . . . . . . . . . . . . . . . . . . . . Effects 332 | . . 2 4 9 3 . . . . 4 . . . . 7 4 15 7 1 9 17 11 7 2 4 58 30 20 19 99 Message Errors 73 | . . . 2 2 . . . . . 2 . . . . 3 2 4 1 . 5 3 4 3 1 2 13 6 5 3 12 Matter Fused 47 | . . 1 1 2 . . . . . . . . . . . . 4 4 . 1 . . . . . 8 7 4 5 10 Heat Flow Errors 32 | . . 1 . 2 . . . . . . . . . . 1 1 1 1 . . 3 3 2 1 . 4 3 3 1 5 Energy Discharges 30 | . . . 1 1 2 . . . . 2 . . . . . 1 4 1 . . 2 1 1 . . 5 3 . 4 2 Parts Rejected 1 | . . . . . . . . . . . . . . . . . . . . . . . . . . . . . . 1 Data Loss (minor) 30 | . . . . 2 . . . . . . . . . . 3 . . . 1 3 6 2 1 . 1 3 2 1 . 5 Data Loss (major) 4 | . . . . . . . . . . . . . . . . . . . . . . . . . . 1 . 1 . 2 Misfires 3 | . . . . . . . . . . . . . . . . . . . . . . . . . . . 2 . . 1 Alerts 3 | . . . . . . . . . . . . . . . . . . . . . . . . . . 1 . . . 2 Misdirections 20 | . . . . . . . . . . . . . . . . . . . . . . . . . . 3 5 5 . 7 Targeting Errors 76 | . . . . . 1 . . . . . . . . . . . . . . . 1 1 . . 1 14 2 1 6 49 Weapon Failures 13 | . . . . . . . . . . . . . . . . . 2 . . . 2 . . . . 6 . . . 3 Overload Shots 1 | . . . . . . . . . . . . . . . . . . 1 . . . . . . . . . . . . Overflow Damage 1503 | . . . . . 99 . 43 23 . 317 . . 257 . 40 119 15 . . 17 . . . . 3 . . . 81 489 Projectiles 74 | . . . . . 18 . . . . 12 . . . . . 19 6 . . . . . . . . . . . . 19 Explosions 1036 | . . . . . 81 . 43 23 . 160 . . 18 . 40 100 9 . . 17 . . . . 3 . . . 72 470 Melee 393 | . . . . . . . . . . 145 . . 239 . . . . . . . . . . . . . . . 9 . Knockbacks 20 | . . . . . . . . . . . . . . . . . . . . . . . . . . . . . 1 19 Impact 1 | . . . . . . . . . . . . . . . . . . . . . . . . . . . . . 1 . Kinetic 12 | . . . . . . . . . . . . . . . . . . . . . . . . . . . . . . 12 Secondary 7 | . . . . . . . . . . . . . . . . . . . . . . . . . . . . . . 7 Self-Inflicted Damage 963 | . . . . . 130 . . . . 97 . . . . 43 . . . . 94 . . . . . . . . 95 504 Shots 39 | . . . . . 7 . . . . 2 . . . . 1 . . . . 1 . . . . . . . . 3 25 Rammed 8 | . . . . . . . . . . . . . . . . . . . . 1 1 . . . . . . . 5 1 Targets Rammed 9 | . . . . . . . . . . . . . . . . . . . . 1 1 . . . . . . . 6 1 Kicked . | . . . . . . . . . . . . . . . . . . . . . . . . . . . . . . . Crushed 1 | . . . . . . . . . . . . . . . . . . . . . . . . . . . . . 1 . Highest Temperature 375 | 30 194 147 . 241 354 36 . . . 210 39 128 218 . 263 375 291 306 84 54 135 212 177 82 . 187 159 216 339 188 Average Temperature 75 | 18 94 47 . 80 81 9 . . . 105 15 59 83 . 122 132 86 103 45 27 19 56 30 58 . 93 74 98 130 32 Received Heat Transfer 4674 | . 333 200 . 99 1098 219 . 9 . 402 117 . 69 . 45 45 93 19 . 135 171 . 30 . 32 162 67 . 235 1094 Effects 3 | . . . . . 1 . . . . . . . . . . 2 . . . . . . . . . . . . . . Energy Bleed 1 | . . . . . . . . . . . . . . . . 1 . . . . . . . . . . . . . . Matter Decay 1 | . . . . . . . . . . . . . . . . 1 . . . . . . . . . . . . . . Short Circuit 1 | . . . . . 1 . . . . . . . . . . . . . . . . . . . . . . . . . Siege Activations 1 | . . . . . . . . . . . . . . . . . . . . . . . . . . . . . 1 . Total Turns 15 | . . . . . . . . . . . . . . . . . . . . . . . . . . . . . 15 . Longest Duration 15 | . . . . . . . . . . . . . . . . . . . . . . . . . . . . . 15 . Robots Corrupted 34 | . . . . . 9 . . . . . . . . . . 3 4 3 3 . . . . . . . . . 6 6 Combat Hostiles 31 | . . . . . 7 . . . . . . . . . . 3 3 3 3 . . . . . . . . . 6 6 Parts Fried 71 | . . . . . 13 . . . . . . . . . . 1 10 3 2 1 . . . . 3 . 2 . 17 19 Impact Corruptions 1 | . . . . . . . . . . . . . . . . . . . . . . . . . . . . . 1 . Robots Melted . | . . . . . . . . . . . . . . . . . . . . . . . . . . . . . . . Combat Hostiles . | . . . . . . . . . . . . . . . . . . . . . . . . . . . . . . . Parts Melted 12 | . . . . . 1 . . 1 . 1 . . . . . 1 . . . . . . . . 3 3 . . 1 1 Heat Transferred 9425 | 37 543 359 . . 1105 . . . . 100 . . . . 450 650 . 250 . . 555 74 148 . 481 2923 . . 500 1250 Parts Sabotaged 5 | . . . . . . . . . . . . . . . . . . . . . . . . . . . . . . 5 Parts Stolen . | . . . . . . . . . . . . . . . . . . . . . . . . . . . . . . . Parts Stripped . | . . . . . . . . . . . . . . . . . . . . . . . . . . . . . . . Power Chain Reactions 20 | . . . . . 8 . . . . . . . . . 1 . . 1 . 1 . . . . . . . . 4 5 Missiles Intercepted . | . . . . . . . . . . . . . . . . . . . . . . . . . . . . . . . Alert | -11 -10 -10 -10 -9 -8 -7 -7 -7 -7 -6 -6 -6 -6 -6 -5 -5 -5 -5 -5 -5 -4 -4 -4 -4 -3 -3 -3 -3 -2 -2 ------- Run | Scr Mat Min Exi Min Mat Fac Low Low Dat Pro Fac Low Low Zio Pro Fac Ext Cet Arc Hub Fac Upp Upp Zhi Pro Res Arm Lab Res Tes Peak Influence 2794 | 5 261 78 . 45 1322 769 . . . . 506 . . . . 564 957 786 322 734 918 . . . . 773 564 . 922 2794 Average Influence 481 | . 153 19 . 28 459 648 . . . . 294 . . . . 373 491 679 304 210 550 . . . . 385 408 . 367 1569 Maximum Alert Level 5 | . 1 . . . 4 3 . . . . 2 . . . . 2 3 3 1 3 3 . . . . 3 2 . 3 5 Low Security (%) 32 | 100 62 100 . 100 42 . . . . . 44 . . . . . 6 . . 70 . . . . . 27 . . 48 . Level 1 20 | . 37 . . . 6 . . . . . 24 . . . . 56 54 . 100 20 28 . . . . 32 68 . 10 . Level 2 21 | . . . . . 19 75 . . . . 31 . . . . 43 10 50 . . 43 . . . . 20 31 . 14 17 Level 3 17 | . . . . . 21 24 . . . . . . . . . . 28 49 . 9 28 . . . . 18 . . 26 14 Level 4 3 | . . . . . 10 . . . . . . . . . . . . . . . . . . . . . . . . 16 Level 5 . | . . . . . . . . . . . . . . . . . . . . . . . . . . . . . . 3 High Security 3 | . . . . . . . . . . . . . . . . . . . . . . . . . . . . . . 47 Max Security . | . . . . . . . . . . . . . . . . . . . . . . . . . . . . . . . Squads Dispatched 86 | . 3 . . . 13 2 . . . . 5 . . . 1 3 4 . . 3 3 . . . . 5 2 . 6 36 Investigation 16 | . 3 . . . 4 . . . . . 3 . . . . . 1 . . . 1 . . . . . 1 . 2 1 Extermination 12 | . . . . . . . . . . . 1 . . . . 1 . . . 1 1 . . . . 3 1 . 2 2 Reinforcement 19 | . . . . . 6 . . . . . 1 . . . . . 2 . . 2 1 . . . . 1 . . 1 5 Assault 37 | . . . . . 1 2 . . . . . . . . 1 2 1 . . . . . . . . 1 . . 1 28 Garrison 2 | . . . . . 2 . . . . . . . . . . . . . . . . . . . . . . . . . Intercept . | . . . . . . . . . . . . . . . . . . . . . . . . . . . . . . . Construction Impeded 4 | . . . . . 2 . . . . . . . . . . . 1 . . 1 . . . . . . . . . . Haulers Reinforced 1 | . . . . . . . . . . . . . . . . . . . . . 1 . . . . . . . . . Stealth | -11 -10 -10 -10 -9 -8 -7 -7 -7 -7 -6 -6 -6 -6 -6 -5 -5 -5 -5 -5 -5 -4 -4 -4 -4 -3 -3 -3 -3 -2 -2 --------- Run | Scr Mat Min Exi Min Mat Fac Low Low Dat Pro Fac Low Low Zio Pro Fac Ext Cet Arc Hub Fac Upp Upp Zhi Pro Res Arm Lab Res Tes Distress Signals 17 | . 1 . . . 1 . . . . . . . . . . 1 3 2 . 1 2 . . . . 2 1 . 3 . Communications Jammed 505 | . . . . . . . . . . . . . . . . . . . . 22 27 . 1 . . 53 . . 157 245 Distress Signals 493 | . . . . . . . . . . . . . . . . . . . . 22 27 . 1 . . 52 . . 154 237 Times Spotted 683 | . 15 13 . 10 86 13 6 8 . 29 11 7 8 . 20 24 36 12 4 20 35 1 3 . 13 59 7 . 53 190 Peak Tracking Total 31 | . 5 4 . 3 8 5 3 4 . 4 3 5 4 . 11 6 6 5 2 12 6 1 2 . 3 6 3 . 9 31 Tactical Retreats 51 | . . 2 . 1 6 3 . . . 3 1 . . . 3 3 2 . . 2 1 . . . . 4 . . 7 13 Traps | -11 -10 -10 -10 -9 -8 -7 -7 -7 -7 -6 -6 -6 -6 -6 -5 -5 -5 -5 -5 -5 -4 -4 -4 -4 -3 -3 -3 -3 -2 -2 ------- Run | Scr Mat Min Exi Min Mat Fac Low Low Dat Pro Fac Low Low Zio Pro Fac Ext Cet Arc Hub Fac Upp Upp Zhi Pro Res Arm Lab Res Tes Traps Triggered 11 | . 2 . . . 3 . . . . . . . . . . . . . . . 1 . . . . . 1 . 1 3 Indirectly 2 | . . . . . 2 . . . . . . . . . . . . . . . . . . . . . . . . . Trap Hack Attempts . | . . . . . . . . . . . . . . . . . . . . . . . . . . . . . . . Triggered . | . . . . . . . . . . . . . . . . . . . . . . . . . . . . . . . Disarmed . | . . . . . . . . . . . . . . . . . . . . . . . . . . . . . . . Reprogrammed 12 | . 11 . . . 1 . . . . . . . . . . . . . . . . . . . . . . . . . Reused 9 | . 2 . . . 1 . . 1 . 3 . . . . . 1 . . . . . . . . 1 . . . . . Traps Extracted . | . . . . . . . . . . . . . . . . . . . . . . . . . . . . . . . Installed 6 | . . . . . . . . 1 . 3 . . . . . 1 . . . . . . . . 1 . . . . . Triggered 23 | . 2 . . . 2 . . 6 . 3 . . . . 4 1 1 . . . . 3 . . 1 . . . . . Exploded 1 | . . . . 1 . . . . . . . . . . . . . . . . . . . . . . . . . . Machines | -11 -10 -10 -10 -9 -8 -7 -7 -7 -7 -6 -6 -6 -6 -6 -5 -5 -5 -5 -5 -5 -4 -4 -4 -4 -3 -3 -3 -3 -2 -2 ---------- Run | Scr Mat Min Exi Min Mat Fac Low Low Dat Pro Fac Low Low Zio Pro Fac Ext Cet Arc Hub Fac Upp Upp Zhi Pro Res Arm Lab Res Tes Machines Disabled 52 | . . . . . 4 . . . . 3 3 . . . . 5 2 3 1 13 3 1 . . . 1 2 1 . 10 Max in Single Turn 13 | . . . . . 1 . . . . 1 1 . . . . 1 1 1 . 13 1 1 . . . 1 1 1 . 1 Garrison Access 6 | . . . . . 1 . . . . . . . . . . 1 . . . . 1 . . . . 1 . . 2 . Network Hub 1 | . . . . . . . . . . . . . . . . . . . . 1 . . . . . . . . . . Machines Sabotaged . | . . . . . . . . . . . . . . . . . . . . . . . . . . . . . . . Garrisons Compromised . | . . . . . . . . . . . . . . . . . . . . . . . . . . . . . . . Overloaded Fab Kills . | . . . . . . . . . . . . . . . . . . . . . . . . . . . . . . . Fab Network Shutdowns . | . . . . . . . . . . . . . . . . . . . . . . . . . . . . . . . Hacking | -11 -10 -10 -10 -9 -8 -7 -7 -7 -7 -6 -6 -6 -6 -6 -5 -5 -5 -5 -5 -5 -4 -4 -4 -4 -3 -3 -3 -3 -2 -2 --------- Run | Scr Mat Min Exi Min Mat Fac Low Low Dat Pro Fac Low Low Zio Pro Fac Ext Cet Arc Hub Fac Upp Upp Zhi Pro Res Arm Lab Res Tes Machines Accessed 59 | . 6 . 1 . 14 1 . 1 4 2 3 1 . 1 . 1 . . . . 4 1 1 4 . 4 2 . 4 4 Terminals 13 | . 4 . . . 7 . . . . . 1 1 . . . . . . . . . . . . . . . . . . Fabricators 6 | . . . . . . . . . . 1 1 . . . . . . . . . 1 . . . . . 1 . 1 1 Repair Stations 8 | . 1 . . . 2 1 . . . . . . . . . . . . . . 1 . . . . . . . 2 1 Recycling Units 8 | . 1 . . . 2 . . . . 1 . . . . . . . . . . 1 . . . . 2 1 . . . Scanalyzers 6 | . . . . . 2 . . . . . 1 . . . . 1 . . . . . . . . . 1 . . . 1 Garrison Access 5 | . . . . . 1 . . . . . . . . . . . . . . . 1 . . . . 1 . . 1 1 Total Hacks 205 | . 19 . 1 . 49 2 . 7 26 5 10 5 . 7 . 5 . . . . 10 1 1 14 . 8 10 . 16 9 Successful 142 | . 15 . 1 . 30 2 . 7 26 1 3 1 . 7 . 5 . . . . 5 1 1 14 . 4 6 . 9 4 Failed 63 | . 4 . . . 19 . . . . 4 7 4 . . . . . . . . 5 . . . . 4 4 . 7 5 Catastrophic 10 | . . . . . 6 . . . . 1 1 1 . . . . . . . . . . . . . . . . . 1 Database Lockouts . | . . . . . . . . . . . . . . . . . . . . . . . . . . . . . . . Manual 178 | . 10 . . . 21 . . . . 1 2 4 . . . 16 35 9 . 11 28 . . . . 16 6 . 7 12 Terminals 49 | . 15 . . . 27 . . . . . 2 5 . . . . . . . . . . . . . . . . . . Fabricators 24 | . . . . . . . . . . 2 5 . . . . . . . . . 4 . . . . . 8 . 3 2 Repair Stations 27 | . 2 . . . 8 2 . . . . . . . . . . . . . . 2 . . . . . . . 12 1 Recycling Units 17 | . 2 . . . 5 . . . . 3 . . . . . . . . . . 2 . . . . 3 2 . . . Scanalyzers 19 | . . . . . 4 . . . . . 3 . . . . 5 . . . . . . . . . 4 . . . 3 Garrison Access 12 | . . . . . 5 . . . . . . . . . . . . . . . 2 . . . . 1 . . 1 3 Terminal Hacks 77 | . 9 . 1 . 9 . . 7 26 . 1 1 . 7 . . . . . . . 1 1 14 . . . . . . Record 25 | . . . 1 . . . . 7 11 . . 1 . . . . . . . . . . . 5 . . . . . . Part Schematic 16 | . 1 . . . . . . . 6 . . . . 7 . . . . . . . . . 2 . . . . . . Robot Schematic 6 | . . . . . . . . . 6 . . . . . . . . . . . . . . . . . . . . . Robot Analysis 5 | . 2 . . . . . . . . . . . . . . . . . . . . . . 3 . . . . . . Prototype ID Bank 11 | . 1 . . . 3 . . . 3 . . . . . . . . . . . . . . 4 . . . . . . Open Door 2 | . . . . . . . . . . . . . . . . . . . . . . 1 1 . . . . . . . Branch Access Points 2 | . . . . . 1 . . . . . 1 . . . . . . . . . . . . . . . . . . . Unreport Threat 4 | . 1 . . . 3 . . . . . . . . . . . . . . . . . . . . . . . . . Reprogram Traps 3 | . 2 . . . 1 . . . . . . . . . . . . . . . . . . . . . . . . . Hauler Manifests 1 | . 1 . . . . . . . . . . . . . . . . . . . . . . . . . . . . . Zone Layout 2 | . 1 . . . 1 . . . . . . . . . . . . . . . . . . . . . . . . . Fabricator Hacks 12 | . . . . . . . . . . 1 2 . . . . . . . . . 2 . . . . . 4 . 1 2 Network Status 1 | . . . . . . . . . . 1 . . . . . . . . . . . . . . . . . . . . Load Schematic 5 | . . . . . . . . . . . 1 . . . . . . . . . 1 . . . . . 1 . 1 1 Build 6 | . . . . . . . . . . . 1 . . . . . . . . . 1 . . . . . 3 . . 1 Repair Station Hacks 18 | . 2 . . . 6 2 . . . . . . . . . . . . . . . . . . . . . . 7 1 Scan Component 10 | . 1 . . . 3 1 . . . . . . . . . . . . . . . . . . . . . . 4 1 Repair 8 | . 1 . . . 3 1 . . . . . . . . . . . . . . . . . . . . . . 3 . Recycling Unit Hacks 6 | . 1 . . . 2 . . . . . . . . . . . . . . . 1 . . . . 1 1 . . . Retrieve Components 6 | . 1 . . . 2 . . . . . . . . . . . . . . . 1 . . . . 1 1 . . . Scanalyzer 11 | . . . . . 4 . . . . . . . . . . 5 . . . . . . . . . 2 . . . . Insert Component 6 | . . . . . 2 . . . . . . . . . . 3 . . . . . . . . . 1 . . . . Analyze 5 | . . . . . 2 . . . . . . . . . . 2 . . . . . . . . . 1 . . . . Garrison Access Hacks 2 | . . . . . . . . . . . . . . . . . . . . . . . . . . 1 . . 1 . Seal Access 2 | . . . . . . . . . . . . . . . . . . . . . . . . . . 1 . . 1 . Unauthorized Hacks 16 | . 3 . . . 9 . . . . . . . . . . . . . . . 2 . . . . . 1 . . 1 Terminals 6 | . 2 . . . 4 . . . . . . . . . . . . . . . . . . . . . . . . . Track 1 | . . . . . 1 . . . . . . . . . . . . . . . . . . . . . . . . . Botnet 3 | . 1 . . . 2 . . . . . . . . . . . . . . . . . . . . . . . . . Disrupt 1 | . . . . . 1 . . . . . . . . . . . . . . . . . . . . . . . . . Search 1 | . 1 . . . . . . . . . . . . . . . . . . . . . . . . . . . . . Fabricators 2 | . . . . . . . . . . . . . . . . . . . . . 1 . . . . . 1 . . . Prioritize 1 | . . . . . . . . . . . . . . . . . . . . . . . . . . . 1 . . . Siphon 1 | . . . . . . . . . . . . . . . . . . . . . 1 . . . . . . . . . Repair Stations . | . . . . . . . . . . . . . . . . . . . . . . . . . . . . . . . Recycling Units 3 | . 1 . . . 2 . . . . . . . . . . . . . . . . . . . . . . . . . Tunnel 3 | . 1 . . . 2 . . . . . . . . . . . . . . . . . . . . . . . . . Scanalyzers 1 | . . . . . . . . . . . . . . . . . . . . . . . . . . . . . . 1 Researchers 1 | . . . . . . . . . . . . . . . . . . . . . . . . . . . . . . 1 Garrison Access 4 | . . . . . 3 . . . . . . . . . . . . . . . 1 . . . . . . . . . Reprogram 2 | . . . . . 2 . . . . . . . . . . . . . . . . . . . . . . . . . Jam 2 | . . . . . 1 . . . . . . . . . . . . . . . 1 . . . . . . . . . Data Cores Recovered 2 | . . . . . . . . . . . . . . . . 1 . . . . 1 . . . . . . . . . Used . | . . . . . . . . . . . . . . . . . . . . . . . . . . . . . . . Hacking Detections 34 | . 3 . . . 12 1 . . . 2 3 1 . . . . . . . . 3 . . . . 3 1 . 3 2 Full Trace Events 7 | . . . . . 1 . . . . . 2 1 . . . . . . . . . . . . . . 1 . 1 1 Feedback Events . | . . . . . . . . . . . . . . . . . . . . . . . . . . . . . . . Feedback Blocked . | . . . . . . . . . . . . . . . . . . . . . . . . . . . . . . . Robot Schematics Acquired 14 | . . . . . . . . . 6 . . . . . . . . . . . 5 . . . . 3 . . . . Robots Built . | . . . . . . . . . . . . . . . . . . . . . . . . . . . . . . . Matter . | . . . . . . . . . . . . . . . . . . . . . . . . . . . . . . . Time . | . . . . . . . . . . . . . . . . . . . . . . . . . . . . . . . Total Robot Build Rating . | . . . . . . . . . . . . . . . . . . . . . . . . . . . . . . . Part Schematics Acquired 63 | . 1 . . . 2 . . . 6 . . . . 7 . 16 21 8 . . . . . 2 . . . . . . Parts Built 7 | . . . . . . . . . . . 1 . . . . . . . . . 2 . . . . . 3 . . 1 Matter 1687 | . . . . . . . . . . . 285 . . . . . . . . . 159 . . . . . 1053 . . 190 Time 439 | . . . . . . . . . . . 76 . . . . . . . . . 53 . . . . . 279 . . 31 Total Part Build Rating 43 | . . . . . . . . . . . 5 . . . . . . . . . 12 . . . . . 21 . . 5 Parts Repaired 8 | . 1 . . . 3 1 . . . . . . . . . . . . . . . . . . . . . . 3 . Time 247 | . 13 . . . 117 12 . . . . . . . . . . . . . . . . . . . . . . 105 . Parts Recycled . | . . . . . . . . . . . . . . . . . . . . . . . . . . . . . . . Recycled Matter . | . . . . . . . . . . . . . . . . . . . . . . . . . . . . . . . Retrieved Matter . | . . . . . . . . . . . . . . . . . . . . . . . . . . . . . . . Retrieved Components 31 | . 2 . . . 20 . . . . . . . . . . . . . . . 6 . . . . 2 1 . . . Parts Scanalyzed 5 | . . . . . 2 . . . . . . . . . . 2 . . . . . . . . . 1 . . . . Part Schematics Acquired 4 | . . . . . 2 . . . . . . . . . . 2 . . . . . . . . . . . . . . Parts Damaged 1 | . . . . . 1 . . . . . . . . . . . . . . . . . . . . . . . . . Bothacking | -11 -10 -10 -10 -9 -8 -7 -7 -7 -7 -6 -6 -6 -6 -6 -5 -5 -5 -5 -5 -5 -4 -4 -4 -4 -3 -3 -3 -3 -2 -2 ------------ Run | Scr Mat Min Exi Min Mat Fac Low Low Dat Pro Fac Low Low Zio Pro Fac Ext Cet Arc Hub Fac Upp Upp Zhi Pro Res Arm Lab Res Tes Used RIF Installer . | . . . . . . . . . . . . . . . . . . . . . . . . . . . . . . . Robots Hacked 1 | . . . . . . . . . . . . . . . 1 . . . . . . . . . . . . . . . Non-combat . | . . . . . . . . . . . . . . . . . . . . . . . . . . . . . . . Combat 1 | . . . . . . . . . . . . . . . 1 . . . . . . . . . . . . . . . Robot Hacks Applied 1 | . . . . . . . . . . . . . . . 1 . . . . . . . . . . . . . . . parse_system 1 | . . . . . . . . . . . . . . . 1 . . . . . . . . . . . . . . . Relay Couplers Released 7 | . . . . . . . . . . . . . . . . 4 . . . . . . . . . . . . 3 . Machine Destruction 7 | . . . . . . . . . . . . . . . . 4 . . . . . . . . . . . . 3 . Robots Rewired 22 | . . . . . . . . . . 6 . . . . 2 . 9 . . . . 4 . . . . . . . 1 Allies Hacked 1 | . . . . . . . . . . 1 . . . . . . . . . . . . . . . . . . . . Hacks Repelled . | . . . . . . . . . . . . . . . . . . . . . . . . . . . . . . . Allies | -11 -10 -10 -10 -9 -8 -7 -7 -7 -7 -6 -6 -6 -6 -6 -5 -5 -5 -5 -5 -5 -4 -4 -4 -4 -3 -3 -3 -3 -2 -2 -------- Run | Scr Mat Min Exi Min Mat Fac Low Low Dat Pro Fac Low Low Zio Pro Fac Ext Cet Arc Hub Fac Upp Upp Zhi Pro Res Arm Lab Res Tes Total Allies 59 | . . 2 . 1 2 . . . . 7 . . . 4 2 3 22 5 . . 2 4 . . . 3 . . 1 1 Largest Group 15 | . . 2 . 1 2 . . . . 6 6 1 1 5 6 3 15 11 4 1 2 4 4 4 4 2 . . 1 1 Highest-Rated Group 687 | . . 55 . 31 31 . . . . 202 202 36 36 185 205 112 549 687 230 94 206 160 160 160 160 140 . . 268 268 Highest-Rated Ally 268 | . . 31 . 31 31 . . . . 94 41 36 36 39 39 42 156 150 94 94 103 46 46 46 46 70 . . 268 268 Zionite Dispatches 6 | . . . . . . . . . . . . . . . . 2 1 . . . 1 . . . . 1 . . 1 . Heavy 1 | . . . . . . . . . . . . . . . . . . . . . 1 . . . . . . . . . Hacker 2 | . . . . . . . . . . . . . . . . 1 . . . . . . . . . 1 . . . . Experimental 1 | . . . . . . . . . . . . . . . . . . . . . . . . . . . . . 1 . Melee Resupply 1 | . . . . . . . . . . . . . . . . 1 . . . . . . . . . . . . . . Infowar Resupply 1 | . . . . . . . . . . . . . . . . . 1 . . . . . . . . . . . . . Total Orders 8 | . . . . . . . . . . . . . . . . 1 1 . . . . . . . . . 1 . . 5 GOTO 1 | . . . . . . . . . . . . . . . . . . . . . . . . . . . . . . 1 DROP 2 | . . . . . . . . . . . . . . . . 1 1 . . . . . . . . . . . . . EXPLORE 1 | . . . . . . . . . . . . . . . . . . . . . . . . . . . 1 . . . RETURN 4 | . . . . . . . . . . . . . . . . . . . . . . . . . . . . . . 4 Ally Attacks 595 | . . 9 . . 23 . . . . 17 45 3 6 . 45 14 153 81 13 5 21 . 17 . 25 3 . . 10 105 Total Damage 23844 | . . 125 . . 288 . . . . 668 1897 229 133 . 1141 478 3638 1938 431 253 1447 . 599 . 598 201 . . 1260 8520 Kills 115 | . . 3 . . 3 . . . . 4 12 1 3 . 10 2 19 7 1 1 7 . 5 . . 2 . . 4 31 Allies Corrupted 2 | . . . . . . . . . . . . . . . . . . 1 . . . . . . . . . . . 1 Allies Melted . | . . . . . . . . . . . . . . . . . . . . . . . . . . . . . . . Intel | -11 -10 -10 -10 -9 -8 -7 -7 -7 -7 -6 -6 -6 -6 -6 -5 -5 -5 -5 -5 -5 -4 -4 -4 -4 -3 -3 -3 -3 -2 -2 ------- Run | Scr Mat Min Exi Min Mat Fac Low Low Dat Pro Fac Low Low Zio Pro Fac Ext Cet Arc Hub Fac Upp Upp Zhi Pro Res Arm Lab Res Tes Robot Analysis Total 5 | . 2 . . . . . . . . . . . . . . . . . . . . . . 3 . . . . . . Derelict Logs Recovered 14 | . . 2 . 1 . . 1 . . . . 1 1 1 3 . . . . . . 2 2 . . . . . . . Drone Launches 16 | . . . . . . . . . . . . . . . . . . . . . . . . . . . 6 . . 10 Drone Recoveries 4 | . . . . . . . . . . . . . . . . . . . . . . . . . . . . . . 4 Zionite Intel Received 34 | . . . . . . . . . . . . . . . . 4 11 2 . 3 7 . . . . 3 1 . 1 2 Main Access 2 | . . . . . . . . . . . . . . . . . 1 . . . 1 . . . . . . . . . Branch Access 1 | . . . . . . . . . . . . . . . . . . . . . 1 . . . . . . . . . Emergency Access 1 | . . . . . . . . . . . . . . . . . . . . . 1 . . . . . . . . . Guard Positions 4 | . . . . . . . . . . . . . . . . . 1 . . 1 1 . . . . 1 . . . . Component Stockpiles 3 | . . . . . . . . . . . . . . . . 1 1 . . . 1 . . . . . . . . . Prototype Stockpiles 4 | . . . . . . . . . . . . . . . . 1 1 . . 1 . . . . . . . . . 1 Component Schematics 1 | . . . . . . . . . . . . . . . . 1 . . . . . . . . . . . . . . Prototype Schematics 3 | . . . . . . . . . . . . . . . . . 2 1 . . . . . . . . . . . . Unaware Schematics 2 | . . . . . . . . . . . . . . . . . . . . . 1 . . . . 1 . . . . Unaware Analyses 3 | . . . . . . . . . . . . . . . . . 2 1 . . . . . . . . . . . . Trap Installations 2 | . . . . . . . . . . . . . . . . . 1 . . . . . . . . . . . 1 . Active Terminals 3 | . . . . . . . . . . . . . . . . . 1 . . . . . . . . 1 1 . . . Active Garrisons 3 | . . . . . . . . . . . . . . . . . . . . 1 1 . . . . . . . . 1 Depthwide Sectors/0 1 | . . . . . . . . . . . . . . . . 1 . . . . . . . . . . . . . . Depthwide Sectors/-1 1 | . . . . . . . . . . . . . . . . . 1 . . . . . . . . . . . . . Exploration | -11 -10 -10 -10 -9 -8 -7 -7 -7 -7 -6 -6 -6 -6 -6 -5 -5 -5 -5 -5 -5 -4 -4 -4 -4 -3 -3 -3 -3 -2 -2 ------------- Run | Scr Mat Min Exi Min Mat Fac Low Low Dat Pro Fac Low Low Zio Pro Fac Ext Cet Arc Hub Fac Upp Upp Zhi Pro Res Arm Lab Res Tes Turns Passed 24737 | 62 411 708 372 774 2799 494 1335 1231 144 1365 365 404 653 1254 519 509 980 435 129 400 1217 938 587 272 580 1698 729 429 1744 1200 Spaces Moved 13067 | 52 255 485 247 423 1244 205 699 632 80 650 248 300 484 976 342 350 599 234 59 211 588 521 346 159 322 742 310 207 699 398 Core 3 | 1 . . . . . . . . . . . . . . . . . . . . . . . . . . . . . 2 Treads 5339 | . 1 . . . 349 40 699 39 . . . . . . . . . 42 59 211 588 521 346 111 . 736 310 207 699 381 Legs 383 | . . . . . . . . . . . . . . . . . . . . . . . . 48 322 6 . . . 7 Wheels 7342 | 51 254 485 247 423 895 165 . 593 80 650 248 300 484 976 342 350 599 192 . . . . . . . . . . . 8 Hover . | . . . . . . . . . . . . . . . . . . . . . . . . . . . . . . . Flight . | . . . . . . . . . . . . . . . . . . . . . . . . . . . . . . . Fastest Speed 50 | 50 90 100 90 160 110 180 180 130 170 113 120 120 120 120 110 110 110 140 160 160 160 160 160 150 150 150 145 145 152 150 Average Speed 145 | 85 99 119 145 160 162 180 180 134 179 145 120 120 120 120 119 110 124 144 160 160 160 160 160 157 150 154 154 149 161 164 Slowest Speed 1200 | 90 160 120 160 160 183 180 180 180 180 180 120 120 120 120 120 110 140 160 160 160 160 160 160 180 150 160 165 170 170 1200 Overloaded Moves . | . . . . . . . . . . . . . . . . . . . . . . . . . . . . . . . Propulsion Burnouts . | . . . . . . . . . . . . . . . . . . . . . . . . . . . . . . . Robots Hopped 1 | . . . . . . . . . . . . . . 1 . . . . . . . . . . . . . . . . Cave-ins Triggered 1 | . . . . . . . . . . . . . . . . . . . . . . . . . . . . . . 1 Teleports 2 | . . . . . . . . . . . . . . . . . . . . . . . . . . . 1 . . 1 Exploration Rate (%) 52 | 4 49 84 55 69 89 6 88 63 68 49 8 55 62 88 50 11 79 78 67 32 21 70 47 60 62 24 23 97 32 49 Regions Visited 30 Branch Regions 22 Pre-discovered Areas 27 | . 1 1 1 . 3 . . . 1 . . . . . 1 10 4 . . . . 1 1 3 . . . . . . Known Exits Taken 25 | . . . . . 1 1 1 1 1 1 1 1 1 1 1 1 1 1 1 1 1 1 1 1 1 1 1 1 1 . Unknown Exits Taken 5 | 1 1 1 1 1 . . . . . . . . . . . . . . . . . . . . . . . . . . Scrap Searched 23 | . . 2 . 2 . . 2 1 . 2 . 1 1 5 . . . . . . . 2 2 . 3 . . . . . Spaces Dug 95 | . . . . . 1 . 25 . . . 2 . . . . . 16 . . 1 15 . . . . 2 . . 24 9 Terrain Destroyed 972 | . . . . . 35 . 33 30 . 74 8 70 52 . 44 65 30 13 . 163 43 1 2 . 17 3 10 . 66 213 Melee 54 | . . . . . 1 . . . . . 2 . . . . . . . . 1 15 . . . . 2 . . 24 9 Projectile 149 | . . . . . . . . . . . 6 2 8 . 5 6 . . . 8 28 1 2 . 6 1 4 . 16 56 AOE 769 | . . . . . 34 . 33 30 . 74 . 68 44 . 39 59 30 13 . 154 . . . . 11 . 6 . 26 148 Actions | -11 -10 -10 -10 -9 -8 -7 -7 -7 -7 -6 -6 -6 -6 -6 -5 -5 -5 -5 -5 -5 -4 -4 -4 -4 -3 -3 -3 -3 -2 -2 --------- Run | Scr Mat Min Exi Min Mat Fac Low Low Dat Pro Fac Low Low Zio Pro Fac Ext Cet Arc Hub Fac Upp Upp Zhi Pro Res Arm Lab Res Tes Total 16883 | 64 336 582 260 507 1779 293 748 994 80 952 287 325 522 1060 419 442 771 310 82 245 731 615 360 181 368 970 533 324 1065 678 Wait 1674 | 1 20 65 . 48 275 51 13 327 . 57 9 6 8 76 42 35 43 6 15 14 27 22 3 2 10 17 178 83 160 61 Move 13036 | 51 254 484 246 422 1243 204 698 631 79 649 247 299 483 973 341 349 598 233 58 210 588 520 345 158 321 741 309 206 698 398 Hop 1 | . . . . . . . . . . . . . . 1 . . . . . . . . . . . . . . . . Pick Up 205 | 5 6 3 10 14 31 5 4 6 . 31 4 . 2 4 . 6 5 9 2 . 9 3 . 3 1 12 6 7 8 9 Fast Attach 114 | 5 4 . 1 2 13 1 1 3 . 4 1 . . . 4 5 1 8 . . 4 1 1 4 2 11 4 5 18 11 Attach 85 | 1 1 3 . . 12 3 1 3 . 11 2 1 . . . 6 1 1 . . 4 . . 1 . 6 . 6 7 15 Detach 44 | . . . . 1 6 1 2 1 . 2 . 1 . . 1 7 . 4 . . . . 1 3 . 1 2 4 4 3 Swap 250 | . 4 1 . 2 28 4 11 5 1 18 6 9 11 2 13 7 10 12 . 7 15 2 1 4 7 14 10 2 29 15 Drop 228 | . 3 1 3 7 34 4 5 6 . 37 3 . 1 4 3 7 5 21 1 . 12 3 . 6 3 19 7 8 18 7 Fire 908 | 1 44 25 . 11 131 20 13 11 . 46 12 9 13 . 15 19 32 14 6 11 54 8 9 . 23 146 13 . 93 129 Melee 108 | . . . . . 6 . . . . 30 3 . 4 . . . . 2 . 2 18 . . . . 3 1 3 24 12 Ram . | . . . . . . . . . . . . . . . . . . . . . . . . . . . . . . . Kick . | . . . . . . . . . . . . . . . . . . . . . . . . . . . . . . . Crush 8 | . . . . . . . . . . . . . . . . . . . . 1 . . . . . . . . 6 1 Escape Stasis 17 | . . . . . . . . . . . . . . . . . . . . . . . . . . . . . . 17 Rewire 196 | . . . . . . . . . . 64 . . . . . . 76 . . . . 56 . . . . . . . . Trap 6 | . . . . . . . . 1 . 3 . . . . . 1 . . . . . . . . 1 . . . . . Miscellaneous 3 | . . . . . . . . . . . . . . . . . . . . . . . . . . . 3 . . . Route ------- -11/Scrapyard -10/Materials (discovered 2 exits: [*Mat] / [*Min]) -10/Mines (discovered 3 exits: [*Mat x2] / *Exi) -10/Exiles -9/Mines (discovered 2 exits: *Mat x2) -8/Materials (discovered 2 exits: *Fac x2) -7/Factory -7/Lower Caves -7/Lower Caves (discovered 2 exits: Fac / *Dat) -7/Data Miner -6/Proximity Caves -6/Factory (discovered 5 exits: Fac x3 / *Low x2) -6/Lower Caves -6/Lower Caves (discovered 2 exits: *Fac / *Zio) -6/Zion -5/Proximity Caves -5/Factory -5/Extension (discovered 3 exits: *Fac x2 / *Cet) -5/Cetus (discovered 2 exits: *Fac / *Arc) -5/Archives -5/Hub_04(d) -4/Factory (discovered 6 exits: Res x4 / *Upp x2) -4/Upper Caves -4/Upper Caves (discovered 2 exits: *Res / *Zhi) -4/Zhirov -3/Proximity Caves -3/Research (discovered 4 exits: *Res / *Arm / Qua x2) -3/Armory -3/Lab -2/Research -2/Testing History --------- Turn | Location | Event 8 | -11/Scrapyard | Discovered new exit (range 15) 63 | -11/Scrapyard | Entered Materials 244 | -10/Materials | Discovered new exit (range 15) 273 | -10/Materials | Repaired Lgt. Treads 320 | -10/Materials | Build established: Mutant 324 | -10/Materials | Discovered new exit (range 13) 474 | -10/Materials | Entered Mines 526 | -10/Mines | Assembled infested the area 669 | -10/Mines | Learned location of Zion (-6) 713 | -10/Mines | Core integrity fell below 50% 792 | -10/Mines | Learned Materials stockpile data 994 | -10/Mines | Discovered new exit (range 6) 1038 | -10/Mines | Discovered new exit (range 5) 1177 | -10/Mines | Deemed a non-threat by the Exiles lab entrance 1177 | -10/Mines | Discovered new exit (range 5) 1182 | -10/Mines | Entered Exiles 1213 | -10/Exiles | Met 8R-AWN 1233 | -10/Exiles | Met EX-HEX 1324 | -10/Exiles | Met EX-DEC 1449 | -10/Exiles | Discovered new exit (range 14) 1554 | -10/Exiles | Entered Mines 1585 | -9/Mines | Build established: Hauler-Mutant 1624 | -9/Mines | Met a Derelict bent on vengeance 1712 | -9/Mines | Received a Rocket Launcher from a helpful Derelict 1724 | -9/Mines | Joined a pair of Derelicts in attacking an 0b10 outpost 1856 | -9/Mines | Discovered new exit (range 10) 2308 | -9/Mines | Discovered new exit (range 11) 2319 | -9/Mines | Escorted by a lone wolf Derelict 2323 | -9/Mines | Learned location of 1 exit from Lower Caves 2328 | -9/Mines | Entered Materials 2328 | -8/Materials | Accompanied by 1 ally 2328 | -8/Materials | Evolved 4 slots: Propulsion x1, Utility x3 2339 | -8/Materials | Learned location of Storage (-7) 3480 | -8/Materials | Repaired Broken Adv. Signal Interpreter? 3979 | -8/Materials | Discovered new exit (range 13) 4134 | -8/Materials | Garrison activated, responded to threat 4376 | -8/Materials | Repaired Arm. Wheel 4410 | -8/Materials | Repaired Arm. Wheel 4728 | -8/Materials | First assault squad dispatched 4985 | -8/Materials | Discovered new exit (range 4) 5125 | -8/Materials | Identified exit to Factory 5127 | -8/Materials | Entered Factory 5127 | -7/Factory | Evolved 2 slots: Utility x2 5321 | -7/Factory | Repaired Imp. Propulsion Shielding 5334 | -7/Factory | Discovered new exit (range 15) 5527 | -7/Factory | First assault squad dispatched 5589 | -7/Factory | Identified exit to Lower Caves 5621 | -7/Factory | Entered Lower Caves 5622 | -7/Lower Caves | Identified exit to Lower Caves 5629 | -7/Lower Caves | Learned Factory garrison access intel 5820 | -7/Lower Caves | Encountered a Warlord checkpoint 6292 | -7/Lower Caves | Build established: Scavenger-Mutant 6592 | -7/Lower Caves | Build established: Hauler-Mutant 6956 | -7/Lower Caves | Entered another Lower Caves area 7682 | -7/Lower Caves | Identified exit to Factory 7682 | -7/Lower Caves | Learned location of 1 exit from Factory 7682 | -7/Lower Caves | Learned location of 1 exit from Research 7682 | -7/Lower Caves | Learned Research security intel 7898 | -7/Lower Caves | Encountered a Warlord checkpoint 8081 | -7/Lower Caves | Discovered new exit (range 3) 8085 | -7/Lower Caves | Identified exit to Data Miner 8187 | -7/Lower Caves | Entered Data Miner 8187 | -7/Data Miner | Discovered new exit (range 7) 8223 | -7/Data Miner | Met Data Miner 8255 | -7/Data Miner | Learned location of Section 7 (-3) 8255 | -7/Data Miner | Acquired the access code to Warlord's prototype stash 8286 | -7/Data Miner | Received God Mode back door access code from Data Miner 8329 | -7/Data Miner | Identified exit to Proximity Caves 8331 | -7/Data Miner | Entered Proximity Caves 8345 | -6/Proximity Caves | Attracted the attention of an 0b10 checkpoint 8381 | -6/Proximity Caves | Escorted by Enhanced Grunt 8782 | -6/Proximity Caves | Destroyed 7 combat bots 8834 | -6/Proximity Caves | Acquired the password to a Derelict Tinkerer's latest research 8896 | -6/Proximity Caves | Found Prototype Special Weapon 8918 | -6/Proximity Caves | Identified Molecular Deconstructor 8997 | -6/Proximity Caves | Spotted B-75 Beast 8998 | -6/Proximity Caves | Entered a huge 0b10 base via the front door 9056 | -6/Proximity Caves | Destroyed B-75 Beast 9658 | -6/Proximity Caves | Caught by Unaware searching for contraband prototypes 9696 | -6/Proximity Caves | Entered Factory 9696 | -6/Factory | Accompanied by 6 allies 9696 | -6/Factory | Evolved 2 slots: Power x1, Weapon x1 9697 | -6/Factory | Identified exit to Factory 9699 | -6/Factory | Loaded intel: 4 garrison access locations 9867 | -6/Factory | Fabricated Exp. Sensor Array (x1) 9923 | -6/Factory | Identified exit to Lower Caves 10061 | -6/Factory | Entered Lower Caves 10061 | -6/Lower Caves | Accompanied by 1 ally 10189 | -6/Lower Caves | Attracted the attention of an 0b10 checkpoint 10366 | -6/Lower Caves | Identified exit to Lower Caves 10465 | -6/Lower Caves | Entered another Lower Caves area 10465 | -6/Lower Caves | Accompanied by 1 ally 10544 | -6/Lower Caves | Discovered exit to Factory (range 15) 10761 | -6/Lower Caves | Ambushed by wild Derelicts 10868 | -6/Lower Caves | Learned Factory interactive machine intel 10888 | -6/Lower Caves | Discovered new exit (range 11) 10900 | -6/Lower Caves | Identified exit to Zion 11109 | -6/Lower Caves | Build established: Hauler-Skirmisher 11118 | -6/Lower Caves | Entered Zion 11118 | -6/Zion | Accompanied by 1 ally 11154 | -6/Zion | Acquired unknown access codes intercepted by a Zionite 11181 | -6/Zion | Discovered new exit (range 15) 11303 | -6/Zion | Found Prototype Device 11461 | -6/Zion | Learned Factory emergency access door positions 11524 | -6/Zion | Given A8's code to call for help 11709 | -6/Zion | Found Prototype Device 11757 | -6/Zion | Learned Factory security intel 12061 | -6/Zion | Imprinted 12063 | -6/Zion | Declared Zion's savior 12293 | -6/Zion | Identified exit to Proximity Caves 12363 | -6/Zion | Build established: Messiah-Skirmisher 12372 | -6/Zion | Entered Proximity Caves 12372 | -5/Proximity Caves | Accompanied by 5 allies 12427 | -5/Proximity Caves | Attracted the attention of an 0b10 outpost 12503 | -5/Proximity Caves | Learned location of Armory (-3) 12611 | -5/Proximity Caves | Learned Factory terminal intel 12690 | -5/Proximity Caves | Discovered exit to Factory (range 14) 12781 | -5/Proximity Caves | Learned Factory emergency access door positions 12891 | -5/Proximity Caves | Entered Factory 12891 | -5/Factory | Accompanied by 3 allies 12891 | -5/Factory | Evolved 2 slots: Propulsion x2 12894 | -5/Factory | Loaded intel: 48 interactive machine locations 12895 | -5/Factory | Loaded intel: 22 terminal locations 12984 | -5/Factory | Retrieved Zion intel report: Component Schematics 13046 | -5/Factory | Identified Phasing AFG 13191 | -5/Factory | First assault squad dispatched 13250 | -5/Factory | Retrieved Zion intel report: Prototype Stockpiles 13251 | -5/Factory | Zion Hacker squad teleported in 13362 | -5/Factory | Retrieved Zion intel report: Component Stockpiles 13377 | -5/Factory | Discovered new exit (range 13) 13388 | -5/Factory | Retrieved Zion intel report: Depthwide Sectors/0 13389 | -5/Factory | Zion Melee Resupply teleported in 13393 | -5/Factory | Incoming assault squad redirected 13395 | -5/Factory | Identified exit to Extension 13400 | -5/Factory | Entered Extension 13521 | -5/Extension | Rescued a captive Derelict 13522 | -5/Extension | Rescued a captive Derelict 13551 | -5/Extension | Rescued a captive Derelict 13552 | -5/Extension | Rescued a captive Derelict 13552 | -5/Extension | Retrieved Zion intel report: Depthwide Sectors/-1 13564 | -5/Extension | Rescued a captive Derelict 13565 | -5/Extension | Rescued a captive Derelict 13566 | -5/Extension | Retrieved Zion intel report: Prototype Stockpiles 13569 | -5/Extension | Rescued A7 13569 | -5/Extension | Retrieved Zion intel report: Component Stockpiles 13608 | -5/Extension | Rescued a captive Derelict 13609 | -5/Extension | Retrieved Zion intel report: Trap Installations 13754 | -5/Extension | Build established: Messiah-Tank 13879 | -5/Extension | Spotted B-75 Beast 13898 | -5/Extension | Destroyed B-75 Beast 13947 | -5/Extension | Spotted B-75 Beast 13968 | -5/Extension | Destroyed B-75 Beast 13974 | -5/Extension | Retrieved Zion intel report: Active Terminals 13974 | -5/Extension | Discovered new exit (range 5) 14036 | -5/Extension | Rescued a captive Derelict 14037 | -5/Extension | Retrieved Zion intel report: Prototype Schematics 14037 | -5/Extension | Rescued a captive Derelict 14045 | -5/Extension | Retrieved Zion intel report: Unaware Analyses 14087 | -5/Extension | Build established: Messiah-Mutant 14093 | -5/Extension | Retrieved Zion intel report: Main Access 14093 | -5/Extension | Identified exit to Factory 14099 | -5/Extension | Rescued a captive Derelict 14100 | -5/Extension | Retrieved Zion intel report: Guard Positions 14193 | -5/Extension | Retrieved Zion intel report: Unaware Analyses 14296 | -5/Extension | Rescued a captive Derelict 14296 | -5/Extension | Retrieved Zion intel report: Prototype Schematics 14297 | -5/Extension | Zion Infowar Resupply teleported in 14300 | -5/Extension | First assault squad dispatched 14308 | -5/Extension | Found Exp. Signal Interpreter 14348 | -5/Extension | Discovered new exit (range 6) 14355 | -5/Extension | Identified exit to Cetus 14380 | -5/Extension | Entered Cetus 14380 | -5/Cetus | Accompanied by 11 allies 14385 | -5/Cetus | Acquired a Cetus Manufacturing Module code from A7 14399 | -5/Cetus | Spotted Cetus Guard 14399 | -5/Cetus | Spotted Cetus Guard 14403 | -5/Cetus | Spotted Cetus Guard 14405 | -5/Cetus | Spotted Cetus Guard 14409 | -5/Cetus | Allies destroyed Cetus Guard 14414 | -5/Cetus | Destroyed Cetus Guard 14415 | -5/Cetus | Allies destroyed Cetus Guard 14416 | -5/Cetus | Allies destroyed Cetus Guard 14507 | -5/Cetus | Started Cetus Manufacturing Module 14532 | -5/Cetus | Manufactured an Enhanced Grunt 14536 | -5/Cetus | Retrieved Zion intel report: Unaware Analyses 14557 | -5/Cetus | Manufactured an Enhanced Grunt 14582 | -5/Cetus | Manufactured an Enhanced Grunt 14592 | -5/Cetus | Retrieved Zion intel report: Prototype Schematics 14607 | -5/Cetus | Manufactured an Enhanced Grunt 14607 | -5/Cetus | Escorted A7 to Cetus Mainframe 14632 | -5/Cetus | Manufactured an Enhanced Grunt 14634 | -5/Cetus | Discovered new exit (range 16) 14660 | -5/Cetus | Spotted Cetus Guard 14660 | -5/Cetus | Spotted Cetus Guard 14664 | -5/Cetus | Destroyed Cetus Guard 14664 | -5/Cetus | Spotted Cetus Guard 14670 | -5/Cetus | Spotted Cetus Guard 14679 | -5/Cetus | Destroyed Cetus Guard 14683 | -5/Cetus | Allies destroyed Cetus Guard 14687 | -5/Cetus | Destroyed Cetus Guard 14694 | -5/Cetus | Discovered exit to Factory (range 15) 14704 | -5/Cetus | Extracted ID and sensor layout for unrecognized location from A7's data core 14722 | -5/Cetus | Scared off Revision 17 14810 | -5/Cetus | Identified exit to Archives 14815 | -5/Cetus | Entered Archives 14815 | -5/Archives | Accompanied by 4 allies 14917 | -5/Archives | Discovered new exit (range 15) 14939 | -5/Archives | Identified exit to Hub_04(d) 14944 | -5/Archives | Entered Hub_04(d) 14944 | -5/Hub_04(d) | Accompanied by 1 ally 15004 | -5/Hub_04(d) | Retrieved Zion intel report: Active Garrisons 15065 | -5/Hub_04(d) | Retrieved Zion intel report: Guard Positions 15141 | -5/Hub_04(d) | Retrieved Zion intel report: Prototype Stockpiles 15153 | -5/Hub_04(d) | Discovered exit to Factory (range 9) 15308 | -5/Hub_04(d) | Network Hub disabled 15318 | -5/Hub_04(d) | Spotted Lightning 15319 | -5/Hub_04(d) | Spotted Lightning 15321 | -5/Hub_04(d) | Spotted Lightning 15334 | -5/Hub_04(d) | Spotted Lightning 15339 | -5/Hub_04(d) | Spotted Lightning 15340 | -5/Hub_04(d) | Spotted Lightning 15344 | -5/Hub_04(d) | System corruption reached 10% 15344 | -5/Hub_04(d) | Entered Factory 15344 | -4/Factory | Evolved 2 slots: Utility x2 15395 | -4/Factory | Retrieved Zion intel report: Branch Access 15395 | -4/Factory | Identified exit to Upper Caves 15429 | -4/Factory | Zion Heavy squad teleported in 15480 | -4/Factory | Found Exp. Signal Interpreter 15630 | -4/Factory | Build established: Messiah-Tank 15646 | -4/Factory | Retrieved Zion intel report: Unaware Schematics 15658 | -4/Factory | Retrieved Zion intel report: Main Access 15658 | -4/Factory | Identified exit to Research 15682 | -4/Factory | Retrieved Zion intel report: Component Stockpiles 15737 | -4/Factory | Retrieved Zion intel report: Guard Positions 15806 | -4/Factory | Fabricated Hyp. Gauss Cannon? 15893 | -4/Factory | Found Prototype Protection 15893 | -4/Factory | Identified Zio. Weapon Casing 16385 | -4/Factory | Retrieved Zion intel report: Emergency Access 16420 | -4/Factory | Retrieved Zion intel report: Active Garrisons 16561 | -4/Factory | Entered Upper Caves 17106 | -4/Upper Caves | Encountered a Warlord checkpoint 17392 | -4/Upper Caves | Discovered new exit (range 9) 17405 | -4/Upper Caves | Identified exit to Upper Caves 17499 | -4/Upper Caves | Entered another Upper Caves area 17499 | -4/Upper Caves | Accompanied by 4 allies 17520 | -4/Upper Caves | Discovered exit to Research (range 6) 17686 | -4/Upper Caves | Learned location of Testing (-2) 17790 | -4/Upper Caves | Build established: Messiah-Mutant 17869 | -4/Upper Caves | Learned location of 1 exit from Research 18040 | -4/Upper Caves | Encountered a Warlord checkpoint 18040 | -4/Upper Caves | Discovered new exit (range 13) 18058 | -4/Upper Caves | Identified exit to Zhirov 18086 | -4/Upper Caves | Entered Zhirov 18086 | -4/Zhirov | Accompanied by 4 allies 18086 | -4/Zhirov | Discovered new exit (range 3) 18117 | -4/Zhirov | Met Zhirov 18152 | -4/Zhirov | Learned location of Quarantine (-3) 18152 | -4/Zhirov | Learned location of Command (-1) 18162 | -4/Zhirov | Zhirov requested help retrieving the SGEMP Prototype 18205 | -4/Zhirov | Build established: Messiah-Tank 18225 | -4/Zhirov | Found Alien Artifact 18225 | -4/Zhirov | Identified Integrated Dissipator 18225 | -4/Zhirov | Installed Integrated Dissipator, increased core heat dissipation (+2%) 18244 | -4/Zhirov | Found Alien Artifact 18354 | -4/Zhirov | Identified exit to Proximity Caves 18358 | -4/Zhirov | Entered Proximity Caves 18358 | -3/Proximity Caves | Accompanied by 4 allies 18845 | -3/Proximity Caves | Discovered exit to Research (range 9) 18938 | -3/Proximity Caves | Entered Research 18938 | -3/Research | Evolved 2 slots: Utility x2 18939 | -3/Research | Identified exit to Quarantine 19158 | -3/Research | Spotted B-86 Titan 19180 | -3/Research | Destroyed B-86 Titan 19496 | -3/Research | Retrieved Zion intel report: Active Terminals 19727 | -3/Research | Retrieved Zion intel report: Guard Positions 19728 | -3/Research | Zion Hacker squad teleported in 19891 | -3/Research | Found Gamma Bomb Array 20085 | -3/Research | System corruption reached 10% 20241 | -3/Research | Found Enh. Force Lance 20314 | -3/Research | Discovered new exit (range 10) 20339 | -3/Research | Identified exit to Research 20356 | -3/Research | Retrieved Zion intel report: Unaware Schematics 20438 | -3/Research | First assault squad dispatched 20453 | -3/Research | Incoming assault squad redirected 20499 | -3/Research | Terminal network hard line cut 20552 | -3/Research | Discovered new exit (range 11) 20574 | -3/Research | Identified exit to Armory 20636 | -3/Research | Entered Armory 20849 | -3/Armory | Retrieved Zion intel report: Active Terminals 20985 | -3/Armory | Fabricated Assault Drone Bay? 21170 | -3/Armory | Fabricated Assault Drone Bay (x1) 21269 | -3/Armory | Fabricated Assault Drone Bay (x1) 21363 | -3/Armory | Identified Transdimensional Reconstructor 21363 | -3/Armory | Warped through subspace to slip node 21363 | -3/Armory | Discovered new exit (range 1) 21363 | -3/Armory | Identified exit to Lab 21365 | -3/Armory | Entered Lab 21365 | -3/Lab | Discovered exit to Research (range 9) 21386 | -3/Lab | Hidden lab's door opened automatically 21386 | -3/Lab | Sensor layout match revealed 21387 | -3/Lab | Gained access to the hidden lab's interior 21389 | -3/Lab | Unable to decrypt terminal 21428 | -3/Lab | Found Alien Artifact 21450 | -3/Lab | Found Alien Artifact 21466 | -3/Lab | Found Transdimensional Reconstructor 21499 | -3/Lab | Found Prototype Hackware 21499 | -3/Lab | Identified Deep Network Scanner 21508 | -3/Lab | Found Prototype Energy Gun 21523 | -3/Lab | Found Prototype Protection 21523 | -3/Lab | Identified Exp. Powered Armor 21532 | -3/Lab | Identified Tachyon Dispersion Ray 21586 | -3/Lab | Found Prototype Special Weapon 21586 | -3/Lab | Identified Gui. Remote Datajack 21664 | -3/Lab | Build established: Messiah-Mutant 21705 | -3/Lab | Identified Core Expander 21705 | -3/Lab | Installed Core Expander, added new Utility slot 21707 | -3/Lab | Identified Integrated Reactor 21707 | -3/Lab | Installed Integrated Reactor, increased core energy generation (+2%) 21710 | -3/Lab | Found Prototype Energy Cannon 21710 | -3/Lab | Identified Potential Cannon 21744 | -3/Lab | Unable to decrypt terminal 21794 | -3/Lab | Entered Research 21794 | -2/Research | Evolved 2 slots: Propulsion x1, Utility x1 21795 | -2/Research | Identified exit to Testing 22156 | -2/Research | Spotted B-90 Cyclops 22179 | -2/Research | Incoming assault squad redirected 22407 | -2/Research | Build established: Messiah-Gunner 22843 | -2/Research | Lost 4 parts (3u1w) 22848 | -2/Research | Destroyed 9 combat bots 22928 | -2/Research | Incoming assault squad redirected 22943 | -2/Research | Destroyed 8 combat bots 23120 | -2/Research | Retrieved Zion intel report: Trap Installations 23121 | -2/Research | Zion Experimental squad teleported in 23153 | -2/Research | Terminal network hard line cut 23384 | -2/Research | Found Mni. Smartbomb Launcher 23415 | -2/Research | Repaired Biometal Heavy Treads 23453 | -2/Research | Repaired Quantum Reactor 23490 | -2/Research | Repaired Adv. Transmission Jammer 23538 | -2/Research | Entered Testing 23538 | -2/Testing | Accompanied by 1 ally 23595 | -2/Testing | System corruption reached 10% 23597 | -2/Testing | Found Prototype Slashing Weapon 23608 | -2/Testing | Identified Centrium Greatsword 23622 | -2/Testing | Fabricated Tactical Coordination Suite (x1) 23681 | -2/Testing | Found Prototype Energy Cannon 23714 | -2/Testing | Identified Hpw. Disruptor Cannon 23789 | -2/Testing | Retrieved Zion intel report: Active Garrisons 23829 | -2/Testing | First assault squad dispatched 23886 | -2/Testing | Destroyed 14 combat bots 23918 | -2/Testing | Incoming investigation squad redirected 23952 | -2/Testing | Retrieved Zion intel report: Prototype Stockpiles 24098 | -2/Testing | Incoming assault squad redirected 24101 | -2/Testing | Incoming assault squad redirected 24102 | -2/Testing | Spotted PD-1OGICERARQ 24110 | -2/Testing | Rewired PD-1OGICERARQ 24163 | -2/Testing | High security lockdown imminent 24168 | -2/Testing | Allies destroyed PD-1OGICERARQ 24243 | -2/Testing | High security lockdown engaged 24271 | -2/Testing | Lost 3 parts (1p2u) 24394 | -2/Testing | Lost 8 parts (1p2n3u2w) 24406 | -2/Testing | Spotted Investigator 24462 | -2/Testing | Destroyed Investigator 24503 | -2/Testing | Destroyed 14 combat bots 24518 | -2/Testing | Crushed by falling debris 24574 | -2/Testing | Core integrity fell below 50% 24588 | -2/Testing | Found Prototype Protection 24589 | -2/Testing | Warped through subspace 24627 | -2/Testing | Lost 12 parts (1p5n3u3w) 24694 | -2/Testing | Core integrity fell below 20% 24699 | -2/Testing | Scanned by Researcher 24703 | -2/Testing | Identified SHELL Armor 24716 | -2/Testing | Destroyed 11 combat bots 24731 | -2/Testing | Spotted Investigator 24737 | -2/Testing | Spotted Striker 24738 | -2/Testing | Destroyed by G-73 Enforcer with Heavy Laser Last Messages --------------- 24734_ E-15 Imp stasis bubble strength at 180. 24735_ C-30 ARC bursts open, deploying its payload. 24735_ Executioner unfolds itself. 24735_ P-80 Master unfolds itself. 24735_ Striker unfolds itself. 24735_ E-15 Imp unfolds itself. 24735_ E-15 Imp stasis bubble strength at 175. 24736_ C-30 ARC bursts open, deploying its payload. 24736_ G-73 Enforcer unfolds itself. 24736_ L-61 Swordsman unfolds itself. 24736_ G-73 Enforcer unfolds itself. 24736_ I-47 Archangel unfolds itself. 24736_ E-15 Imp stasis bubble strength at 170. 24737_ The unstable cave ceiling collapses. 24737_ E-15 Imp stasis bubble strength at 165. 24737_ Held in stasis. 24737_ C-65 Expert is analyzing... 24737_ Held in stasis. 24737_ C-65 Expert is analyzing... 24737_ Critical hit. Map ----- +----------------------------------------------------+ | ???????????????????#!" ##???????????????????? | | ???????????????????#! #???????????????????? | | ???????????????????#!"T# =! #???????????????????? | | ???????????????????##### %% #??????????????????? | | ??????????????????????#" =! ##?????????????????? | | ??????????????????#####" %/ ! %#=/####???????????? | | ?????????????????? #!=/=%*!==[*%!%!=!%%" = ?????? | | ?????????????????##"!=%#######/*=!####???????????? | | ?????????????????#![*!!############??????????????? | | ?????????????????#%[==!## #??????????????????? | | ?????????????????#[%=%=## #?###??????????????? | | ?????????????????####%%## ! # ??????????????? | | ??????????????????###=%## +* ????????????????? | | ???# ############ *[%= """ #??????????????????? | | ???# %[! [[= """ #??????????????????? | | ???# %=!% = * """ #%"???"????????????? | | ???# ###+####### [ #="?? ""?"?????????? | | ???????????????# # """ #=""" "" "?????????? | | ???????????????# # """ # ????????? | | ???????????????# """ ???????? | | ???????????????## # ???????? | | ???????????????# # # ??????? | | ???????????????## # ## g ??????? | | ???????????????# # % g # ###?????? | | ???????????????# g% ### c gggl%i ?????? | | ???????????????# # @! c gg ggg%g ?????? | | ?????????????????# e eggp ""??????? | | ?????????????????# l cK ""???????? | | ????????????????# # # % # """???????? | | ????????????????######## ## gm """???????? | | ??????????????????????## # ### ????? | | ?????????????????????## # # #???? ??????? | | ????????????????????## # ### ###???? ???????? | | ??????????????####### ## %# # ????????? | | ??????????????# # [! # ??????? | | ??????????????# " # ######???????? | | ??????????????# """ # """ #???????? | | ??????????????# """ # S"" #???????? | | ??????????????# """" # + "" #???????? | | ??????????????# """"" + # #???????? | | ??????????????# """" # # """" #???????? | | ??????????????# """" # # """" #???????? | | ??????????????# " """ # ## # """" #???????? | | ??????????????# " " # #### """" #???????? | | ??????????????# # #### #???????? | | ??????????????# # #?#""########???????? | | ??????????????############## #?##*[###???????????? | | ?????????????????? ??##### ####|%! #???????????? | | ?????????????????? + == #???????????? | | ??????????????????? ?####+##### #???????????? | +----------------------------------------------------+ Best States ------------- Heat Dissipation 128 Coolant Potential 50 Energy Generation 55 Energy Capacity 1040 Matter Stores 353 Matter Capacity 700 Sight Range 22 Robot Scan Range 30 Terrain Scan Range 20 Terrain Scan Density 210 Jamming Range 16 Armor Coverage 1050 Resistance: KI 20 Core Shielding 30 Propulsion Shielding 66 Utility Shielding 66 Weapon Shielding 100 Weapon Cycling 20 Phase Shifting 10 Evasion (%) 50 Targeting Accuracy 6 Target Analysis 8 Core Analysis 8 Recoil Reduction 6 Matter Filtering 30 Particle Charging 25 Kinecelleration 40 Offensive Hacking 25 Defensive Hacking 10 Item Schematics ----------------- Hcp. Storage Unit | -10/Materials | Hacked Adv. Signal Interpreter | -8/Materials | Scanalyzed Shock Bomb Launcher | -8/Materials | Scanalyzed Combat Drone Bay | -7/Data Miner | Free Lgt. Regenerative Plating | -7/Data Miner | Free Exp. Flexi-carbon Leg | -7/Data Miner | Free Cmb. Gravmag System | -7/Data Miner | Free Exp. Sensor Array | -7/Data Miner | Free Tactical Coordination Suite | -7/Data Miner | Free Riot Gun | -6/Zion | Free Barrage Gun | -6/Zion | Free Battle Cannon | -6/Zion | Free Slug Cannon | -6/Zion | Free Flamer | -6/Zion | Free Enh. Flamer | -6/Zion | Free Plasma Flamer | -6/Zion | Free Hvy. Flak Cannon | -5/Factory | Z-intel Coil Gun | -5/Factory | Z-intel Imp. Recalibrator | -5/Factory | Z-intel Imp. Transmission Jammer | -5/Factory | Z-intel Adv. Weight Redist. System | -5/Factory | Z-intel Hyp. Gauss Cannon | -5/Factory | Z-intel Med. Storage Unit | -5/Factory | Z-intel Hvy. Phase Cannon | -5/Factory | Z-intel Lgt. Angular Momentum Engine | -5/Factory | Z-intel Adv. Salvage Targeting Computer | -5/Factory | Z-intel Imp. Weapon Cycler | -5/Factory | Z-intel Imp. Thermal Generator | -5/Factory | Z-intel Imp. Shield Generator | -5/Factory | Z-intel Imp. Core Analyzer | -5/Factory | Z-intel Cmb. Airjet | -5/Factory | Scanalyzed Hvy. Proton Cannon | -5/Factory | Scanalyzed Fusion Reactor | -5/Extension | Z-intel Gui. EMP Blaster | -5/Extension | Z-intel Lgt. Neutrino Core | -5/Extension | Z-intel Cld. Particle Cannon | -5/Extension | Z-intel Hvy. Deuterium Engine | -5/Extension | Z-intel Enh. Coil Gun | -5/Extension | Z-intel Gravity Neutralizing Apparatus | -5/Extension | Z-intel Cld. Gravmag System | -5/Extension | Z-intel Cld. Aerolev Unit | -5/Extension | Z-intel Imp. Matter Compressor | -5/Extension | Z-intel Cold Fusion Reactor | -5/Extension | Z-intel Exp. Heat Sink | -5/Extension | Z-intel Hvy. Proton Missile Launcher | -5/Extension | Z-intel Exp. Signal Interpreter | -5/Extension | Z-intel Exp. Optical Array | -5/Extension | Z-intel Kinetic Spear | -5/Extension | Z-intel Cld. Plasma Cannon | -5/Extension | Z-intel Cld. Plasma Rifle | -5/Extension | Z-intel Cld. Nuclear Pulse Thruster | -5/Extension | Z-intel Com. Ion Cannon | -5/Extension | Z-intel Scatter Rocket Array | -5/Extension | Z-intel Hpw. Electrolaser | -5/Cetus | Z-intel Enh. Armored Leg | -5/Cetus | Z-intel Prc. Matter Filter | -5/Cetus | Z-intel Exp. Targeting Computer | -5/Cetus | Z-intel Exp. Cesium-ion Thruster | -5/Cetus | Z-intel Antimatter Cannon | -5/Cetus | Z-intel Shock Maul | -5/Cetus | Z-intel Mni. Smartbomb Launcher | -5/Cetus | Z-intel Assault Drone Bay | -4/Zhirov | Free Imp. Arc Thrower | -4/Zhirov | Free Robot Schematics ------------------ S-27 Virus | -7/Data Miner | Free G-50 Soldier | -7/Data Miner | Free G-67 Veteran | -7/Data Miner | Free L-41 Fighter | -7/Data Miner | Free X-72 Disruptor | -7/Data Miner | Free I-36 Angel | -7/Data Miner | Free H-77 Assassin | -4/Factory | Z-intel W-44 Eye | -4/Factory | Z-intel M-22 Extractor | -4/Factory | Z-intel T-07 Excavator | -4/Factory | Z-intel K-01 Serf | -4/Factory | Z-intel A-15 Conveyor | -3/Research | Z-intel Y-72 Warden | -3/Research | Z-intel P-80 Master | -3/Research | Z-intel Fabricated ------------ Exp. Sensor Array | x1 | -6/Factory Hyp. Gauss Cannon | x2 | -4/Factory Assault Drone Bay | x1 | -3/Armory Assault Drone Bay | x1 | -3/Armory Assault Drone Bay | x1 | -3/Armory Tactical Coordination Suite | x1 | -2/Testing Alien Tech Used ----------------- Integrated Dissipator Transdimensional Reconstructor Core Expander Integrated Reactor Achievements -------------- None Challenges ------------ None Game ------ Seed DecoderPrecisionStorm Manual? 0 Play Time 03:28:40 Cumulative 506.6 hours Start 2020.04.21 @ 01:02:12 End 2020.04.22 @ 04:47:16 Sessions 5 Manual Loads 0 Difficulty Rogue Special Mode None Game No. 388 Rogue 384 Adventurer 4 Explorer 0 Win Type - Total 58 Types 50/3/1/2/2/0/0 Lore% 93 Gallery% 95 Achievement% 96 Wizard Run 0 Options --------- ASCII 0 Keyboard 0 Movement Vi Keybinds 0 Fullscreen 0 Font 16/Terminus Map View 76x50 Tactical HUD 1 Map Filters NONE Filters NONE Steam 1 RUN: 87b1c02c-15a8-4ea8-96bb-f853fc9f6198